Workbook

Sheet AER only (hidden)
B1: Data in these columns used for data validation and database purposes.
B2: Date last modified: | C2: 2017-01-16 | D2: added (Albury and Victora) for AGN
C3: 2016-10-17 | D3: updated TransGrid's correct legal name, corrected TasNetworks (T) to June financial year
C4: 2017-02-01 | D4: inserted Power and Water, added NRs (dms_FeederCat_1 and dms_FeederCat_2)
C5: 2017-03-03 | D5: inserted AEMO as a business | AC5: FOR ELECTRICITY BUSINESSES ONLY
AC6: Feeder Types | AG6: TasNetworks (D) | AH6: MAIFI flag | AI6: Feeder Names
AC7: CBD | AD7: Urban | AE7: Short rural | AF7: long rural | AG7: EXTRA
B8: dms_TradingName_List | C8: dms_TradingNameFull_List | D8: dms_ABN_List | E8: dms_JurisdictionList | F8: dms_Sector_List | G8: dms_Segment_List | H8: dms_FormControl_List | I8: dms_RPT_List | J8: dms_RPTMonth_List | K8: dms_CRCPlength_List | L8: dms_FRCPlength_List | M8: dms_663_List | N8: dms_DeterminationRef_List | O8: dms_Addr1_List | P8: dms_Addr2_List | Q8: dms_Suburb_List | R8: dms_State_List | S8: dms_PostCode_List | T8: dms_PAddr1_List | U8: dms_PAddr2_List | V8: dms_PSuburb_List | W8: dms_PState_List | X8: dms_PPostCode_List | Y8: dms_ContactName1_List | Z8: dms_ContactPh1_List | AA8: dms_ContactEmail_List | AB8: Column1 | AC8: dms_CBD_flag | AD8: dms_Urban_flag | AE8: dms_ShortRural_flag | AF8: dms_LongRural_flag | AG8: dms_FeederType_5_flag | AH8: dms_MAIFI_flag_List | AI8: dms_FeederName_1 | AJ8: dms_FeederName_2 | AK8: dms_FeederName_3 | AL8: dms_FeederName_4 | AM8: dms_FeederName_5
B9: ActewAGL Distribution | C9: ActewAGL Distribution | D9: 76670568688 | E9: ACT | F9: Electricity | G9: Distribution | H9: Revenue cap | I9: Financial | J9: June | K9: 5 | L9: 5 | M9: 5 | N9: 2014-19 Distribution Determination | O9: 40 Bunda Street | Q9: CANBERRA | R9: ACT | S9: 2600 | T9: GPO BOX 366 | V9: CANBERRA | W9: ACT | X9: 2601 | Y9: Robert Walker | Z9: 02 6248 3847 | AA9: robert.walker@actewagle.com.au | AC9: NO | AD9: YES | AE9: YES | AF9: NO | AG9: NO | AI9: CBD | AJ9: Urban | AK9: Short rural | AL9: Long rural | AN9: ActewAGL Distribution
B10: ActewAGL Distribution (Tx Assets) | C10: ActewAGL Distribution (Tx Assets) | D10: 76670568688 | E10: ACT | F10: Electricity | G10: Distribution | H10: Revenue cap | I10: Financial | J10: June | K10: 5 | L10: 5 | M10: 5 | N10: distribution determination | O10: 40 Bunda Street | Q10: CANBERRA | R10: ACT | S10: 2600 | T10: GPO BOX 366 | V10: CANBERRA | W10: ACT | X10: 2601 | Y10: Robert Walker | Z10: 02 6248 3847 | AA10: robert.walker@actewagle.com.au | AI10: CBD | AJ10: Urban | AK10: Short rural | AL10: Long rural | AN10: ActewAGL Distribution (Tx Assets)
B11: ActewAGL Gas | C11: ActewAGL Gas | D11: 76670568688 | E11: ACT | F11: Gas | G11: Distribution | H11: Weighted average price cap | I11: Financial | J11: June | K11: 5 | L11: 5 | M11: x | O11: 40 Bunda Street | Q11: CANBERRA | R11: ACT | S11: 2600 | T11: GPO BOX 366 | V11: CANBERRA | W11: ACT | X11: 2601 | Y11: Philip Deamer | Z11: 02 6248 3438 | AA11: GasAAReview@actewagl.com.au | AN11: ActewAGL Gas
B12: AEMO | C12: Australian Energy Market Operator Ltd | D12: 94072010327 | E12: Vic | F12: Electricity | G12: Transmission | H12: - | I12: Financial | J12: March | K12: 5 | L12: 5 | M12: x | N12: - | O12: Level 22 | P12: 530 Collins Street | Q12: MELBOURNE | R12: VIC | S12: 3000 | T12: GPO Box 2008 | V12: MELBOURNE | W12: VIC | X12: 3001 | AN12: AEMO
B13: AGN (Albury and Victoria) | C13: Australian Gas Networks Limited (reporting data for Albury and Victoria) | D13: 19078551685 | E13: Vic | F13: Gas | G13: Distribution | H13: Weighted average price cap | I13: Calendar | J13: December | K13: 5 | L13: 5 | M13: x | O13: Level 6 | P13: 400 King William Street | Q13: ADELAIDE | R13: SA | S13: 5000 | T13: PO Box 6468 | U13: Halifax Street | V13: ADELAIDE | W13: SA | X13: 5000 | Y13: Craig de Laine | Z13: 08 8418 1129 | AA13: craig.delaine@agn.com.au | AI13: CBD | AJ13: Urban | AK13: Short rural | AL13: Long rural | AN13: AGN (Albury)
B14: AGN (Albury) | C14: Australian Gas Networks Limited (reporting data for Albury) | D14: 19078551685 | E14: Vic | F14: Gas | G14: Distribution | H14: Weighted average price cap | I14: Calendar | J14: December | K14: 5 | L14: 5 | M14: x | O14: Level 6 | P14: 400 King William Street | Q14: ADELAIDE | R14: SA | S14: 5000 | T14: PO Box 6468 | U14: Halifax Street | V14: ADELAIDE | W14: SA | X14: 5000 | Y14: Craig de Laine | Z14: 08 8418 1129 | AA14: craig.delaine@agn.com.au | AI14: CBD | AJ14: Urban | AK14: Short rural | AL14: Long rural
B15: AGN (SA) | C15: Australian Gas Networks Limited (reporting data for SA) | D15: 19078551685 | E15: SA | F15: Gas | G15: Distribution | H15: Weighted average price cap | I15: Financial | J15: June | K15: 5 | L15: 5 | M15: 5 | N15: distribution determination | O15: Level 6 | P15: 400 King William Street | Q15: ADELAIDE | R15: SA | S15: 5000 | T15: PO Box 6468 | U15: Halifax Street | V15: ADELAIDE | W15: SA | X15: 5000 | Y15: Craig de Laine | Z15: 08 8418 1129 | AA15: craig.delaine@agn.com.au | AN15: AGN (SA)
B16: AGN (Victoria) | C16: Australian Gas Networks Limited (reporting data for Victoria) | D16: 19078551685 | E16: Vic | F16: Gas | G16: Distribution | H16: Weighted average price cap | I16: Calendar | J16: December | K16: 5 | L16: 5 | M16: x | AN16: AGN (Victoria)
B17: Amadeus | C17: APT Pipelines (NT) Pty Ltd | D17: 39009737393 | E17: NT | F17: Gas | G17: Transmission | H17: Weighted average price cap | I17: Financial | J17: June | K17: 5 | L17: 5 | M17: x | N17: n/a | O17: Level 19, HSBC Building | P17: 580 George Street | Q17: SYDNEY | R17: NSW | S17: 2000 | T17: Level 19, HSBC Building | U17: 580 George Street | V17: SYDNEY | W17: NSW | X17: 2000 | Y17: Alexandra Curran | Z17: 02 9275 0020 | AA17: alexandra.curran@apa.com.au | AN17: Amadeus
B18: APA GasNet | C18: APA GasNet Australia (Operations) Pty Ltd | D18: 065083009 | E18: Vic | F18: Gas | G18: Transmission | H18: Weighted average price cap | I18: Calendar | J18: December | K18: 5 | L18: 5 | M18: x | O18: Level 19, HSBC Building | P18: 580 George Street | Q18: SYDNEY | R18: NSW | S18: 2000 | T18: PO Box R41 | V18: ROYAL EXCHANGE | W18: NSW | X18: 1225 | Z18: 02 9693 0000 | AN18: APA GasNet
B19: Ausgrid | C19: Ausgrid | D19: 78508211731 | E19: NSW | F19: Electricity | G19: Distribution | H19: Revenue cap | I19: Financial | J19: June | K19: 5 | L19: 5 | M19: 5 | N19: 2014-19 Distribution Determination | O19: 570 George St | Q19: SYDNEY | R19: NSW | S19: 2000 | T19: GPO Box 4009 | V19: SYDNEY | W19: NSW | X19: 2001 | Y19: John Thomson | Z19: (02) 9269 2312 | AA19: john.thomson@ausgrid.com.au | AC19: YES | AD19: YES | AE19: YES | AF19: YES | AG19: NO | AI19: CBD | AJ19: Urban | AK19: Short rural | AL19: Long rural | AN19: Ausgrid
B20: Ausgrid (Tx Assets) | C20: Ausgrid (Tx Assets) | D20: 67505337385 | E20: NSW | F20: Electricity | G20: Distribution | H20: Revenue cap | I20: Financial | J20: June | K20: 5 | L20: 5 | M20: 5 | N20: distribution determination | R20: NSW | AI20: CBD | AJ20: Urban | AK20: Short rural | AL20: Long rural | AN20: Ausgrid (Tx Assets)
B21: AusNet (D) | C21: AusNet Electricity Services Pty Ltd | D21: 91064651118 | E21: Vic | F21: Electricity | G21: Distribution | H21: Revenue cap | I21: Calendar | J21: December | K21: 5 | L21: 5 | M21: 2 | N21: 2016-20 Distribution Determination | O21: Level 32 | P21: 2 Southbank Boulevard | Q21: SOUTHBANK | R21: Vic | S21: 3006 | T21: Locked Bag 14051 | V21: MELBOURNE CITY MAIL CENTRE | W21: VIC | X21: 8001 | Y21: Hannah Williams | Z21: 03 9683 4088 | AA21: hwilliams@powercor.com.au | AD21: YES | AE21: YES | AF21: YES | AG21: NO | AI21: CBD | AJ21: Urban | AK21: Short rural | AL21: Long rural | AN21: AusNet (D)
B22: AusNet (Gas) | C22: AusNet Gas Services | D22: 086015036 | E22: Vic | F22: Gas | G22: Distribution | H22: Weighted average price cap | I22: Calendar | J22: December | K22: 5 | L22: 5 | M22: X | AN22: AusNet (Gas)
B23: AusNet (T) | C23: Ausnet Services (Transmission) Ltd | D23: 48116124362 | E23: Vic | F23: Electricity | G23: Transmission | H23: Revenue cap | I23: Financial | J23: March | K23: 5 | L23: 5 | M23: 2 | N23: transmission determination | O23: Level 32 | P23: 2 Southbank Boulevard | Q23: SOUTHBANK | R23: Vic | S23: 3006 | T23: Locked Bag 14051 | V23: MELBOURNE CITY MAIL CENTRE | W23: Vic | X23: 8001 | Y23: Clare Thompson | Z23: 03 9695 6670 | AA23: clare.e.thompson@ausnetservices.com.au | AI23: CBD | AJ23: Urban | AK23: Short rural | AL23: Long rural | AN23: AusNet (T)
B24: Australian Distribution Co. | C24: Australian Distribution Co. | D24: 11222333444 | E24: - | F24: Electricity | G24: Distribution | H24: Revenue cap | I24: Financial | J24: June | K24: 5 | L24: 5 | M24: 2 | N24: distribution determination | O24: 123 Straight Street | Q24: SYDNEY | R24: NSW | S24: 2000 | T24: PO Box 123 | V24: SYDNEY | W24: NSW | X24: 2000 | Y24: Bob Smith | Z24: 02 1234 5678 | AA24: bob@auselec.net.au | AI24: CBD | AJ24: Urban | AK24: Short rural | AL24: Long rural | AN24: Australian Distribution Co.
B25: Australian Distribution Co. (Vic) | C25: Australian Distribution Co. (Victoria) | D25: 11222333444 | E25: Vic | F25: Electricity | G25: Distribution | H25: Revenue cap | I25: Calendar | J25: December | K25: 5 | L25: 5 | M25: 2 | N25: distribution determination | O25: 123 Straight Street | Q25: MELBOURNE | R25: Vic | S25: 3000 | T25: PO Box 123 | V25: MELBOURNE | W25: VIC | X25: 3000 | Y25: Bob Smith | Z25: 02 1234 5678 | AA25: bob@auselec.net.au | AI25: CBD | AJ25: Urban | AK25: Short rural | AL25: Long rural | AN25: Australian Distribution Co. (Vic)
B26: Australian Transmission Co. | C26: Australian Transmission Co. | D26: 11222333444 | E26: - | F26: Electricity | G26: Transmission | H26: Revenue cap | I26: Financial | J26: June | K26: 5 | L26: 5 | M26: 5 | N26: transmission determination | O26: 123 Straight Street | Q26: SYDNEY | R26: NSW | S26: 2000 | T26: PO Box 123 | V26: SYDNEY | W26: NSW | X26: 2000 | Y26: Bob Smith | Z26: 02 1234 5678 | AA26: bob@auselec.net.au | AI26: CBD | AJ26: Urban | AK26: Short rural | AL26: Long rural | AN26: Australian Transmission Co.
B27: CitiPower | C27: CitiPower | D27: 76064651056 | E27: Vic | F27: Electricity | G27: Distribution | H27: Revenue cap | I27: Calendar | J27: December | K27: 5 | L27: 5 | M27: 2 | N27: 2016-20 Distribution Determination | O27: 40 Market Street | Q27: MELBOURNE | R27: Vic | S27: 3000 | T27: Locked Bag 14090 | V27: MELBOURNE | W27: VIC | X27: 8001 | Y27: Hannah Williams | Z27: 03 9683 4088 | AA27: hwilliams@powercor.com.au | AC27: YES | AD27: YES | AE27: NO | AF27: NO | AG27: NO | AI27: CBD | AJ27: Urban | AK27: Short rural | AL27: Long rural | AN27: CitiPower
B28: Directlink | C28: Directlink | D28: 16779340889 | E28: Qld | F28: Electricity | G28: Transmission | H28: Revenue cap | I28: Financial | J28: June | K28: 9 | L28: 5 | M28: 5 | N28: transmission determination | O28: Level 19, HSBC Building | P28: 580 George Street | Q28: SYDNEY | R28: NSW | S28: 2000 | T28: PO Box R41 | V28: ROYAL EXCHANGE | W28: NSW | X28: 1225 | Y28: Scott Young | Z28: 02 9275 0031 | AA28: scott.young@apa.com.au | AI28: CBD | AJ28: Urban | AK28: Short rural | AL28: Long rural | AN28: Directlink
B29: ElectraNet | C29: ElectraNet | D29: 41094482416 | E29: SA | F29: Electricity | G29: Transmission | H29: Revenue cap | I29: Financial | J29: June | K29: 5 | L29: 5 | M29: 5 | N29: transmission determination | O29: 52-55 East Terrace | P29: Rymill Park | Q29: ADELAIDE | R29: SA | S29: 5000 | T29: PO Box 7096 | U29: Hutt Street Post Office | V29: ADELAIDE | W29: SA | X29: 5000 | Y29: Bill Jackson | Z29: 08 8404 7969 | AA29: jackson.bill@electranet.com.au | AI29: CBD | AJ29: Urban | AK29: Short rural | AL29: Long rural | AN29: ElectraNet
B30: Endeavour Energy | C30: Endeavour Energy | D30: 59253130878 | E30: NSW | F30: Electricity | G30: Distribution | H30: Revenue cap | I30: Financial | J30: June | K30: 5 | L30: 5 | M30: 5 | N30: 2014-19 Distribution Determination | O30: 51 Huntingwood Drive | Q30: HUNTINGWOOD | R30: NSW | S30: 2148 | T30: PO Box 811 | V30: SEVEN HILLS | W30: NSW | X30: 1730 | Y30: Jon Hocking | Z30: 02 9853 4386 / 0407 348 156 | AA30: Jon.Hocking@Endeavourenergy.com.au | AC30: NO | AD30: YES | AE30: YES | AF30: YES | AG30: NO | AI30: CBD | AJ30: Urban | AK30: Short rural | AL30: Long rural | AN30: Endeavour Energy
B31: Energex | C31: Energex | D31: 40078849055 | E31: Qld | F31: Electricity | G31: Distribution | H31: Revenue cap | I31: Financial | J31: June | K31: 5 | L31: 5 | M31: 5 | N31: 2015-20 Distribution Determination | O31: 26 Reddacliff Street | Q31: NEWSTEAD | R31: Qld | S31: 4006 | T31: 26 Reddacliff Street | V31: NEWSTEAD | W31: QLD | X31: 4006 | Y31: Nicola Roscoe | Z31: 07 3664 5891 | AA31: nicolaroscoe@energex.com.au | AC31: YES | AD31: YES | AE31: YES | AF31: NO | AG31: NO | AI31: CBD | AJ31: Urban | AK31: Short rural | AL31: Long rural | AN31: Energex
B32: Ergon Energy | C32: Ergon Energy | D32: 50087646062 | E32: Qld | F32: Electricity | G32: Distribution | H32: Revenue cap | I32: Financial | J32: June | K32: 5 | L32: 5 | M32: 5 | N32: 2015-20 Distribution Determination | O32: 22 Walker Street | Q32: TOWNSVILLE | R32: Qld | S32: 4810 | T32: Po Box 264 | V32: FORTITUDE VALLEY | W32: QLD | X32: 4006 | Y32: Jenny Doyle, Group Manager Regulatory Affairs | Z32: (07) 3851 6416 | AA32: jenny.doyle@ergon.com.au | AC32: NO | AD32: YES | AE32: YES | AF32: YES | AG32: NO | AI32: CBD | AJ32: Urban | AK32: Short rural | AL32: Long rural | AN32: Ergon Energy
B33: Essential Energy | C33: Essential Energy | D33: 37428185226 | E33: NSW | F33: Electricity | G33: Distribution | H33: Revenue cap | I33: Financial | J33: June | K33: 5 | L33: 5 | M33: 5 | N33: 2014-19 Distribution Determination | O33: 8 Buller Street | Q33: PORT MACQUARIE | R33: NSW | S33: 2444 | T33: PO Box 5730 | V33: PORT MACQUARIE | W33: NSW | X33: 2444 | Y33: Catherine Waddell | Z33: 02 6338 3553 | AA33: catherine.waddell@essentialenergy.com.au | AE33: YES | AF33: YES | AG33: NO | AI33: CBD | AJ33: Urban | AK33: Short rural | AL33: Long rural | AN33: Essential Energy
B34: Jemena Electricity | C34: Jemena Electricity | D34: 82064651083 | E34: Vic | F34: Electricity | G34: Distribution | H34: Revenue cap | I34: Calendar | J34: December | K34: 5 | L34: 5 | M34: 2 | N34: 2016-20 Distribution Determination | O34: Level 16 | P34: 567 Collins Street | Q34: MELBOURNE | R34: VIC | S34: 3000 | T34: PO Box 16182 | V34: MELBOURNE | W34: VIC | X34: 8001 | Y34: Matthew Serpell | Z34: 03 9173 8231 | AA34: matthew.serpell@jemena.com.au | AE34: YES | AF34: NO | AG34: NO | AI34: CBD | AJ34: Urban | AK34: Short rural | AL34: Long rural | AN34: Jemena Electricity
B35: JGN | C35: Jemena Gas Networks (NSW) Ltd | D35: 003 004 322 | E35: NSW | F35: Gas | G35: Distribution | H35: Weighted average price cap | I35: Financial | J35: June | K35: 5 | L35: 5 | AN35: JGN
B36: Multinet Gas | C36: Multinet Gas (DB No.1) Pty Ltd (ACN 086 026 986), Multinet Gas (DB No.2) Pty Ltd (ACN 086 230 122) | D36: 086026986 | E36: Vic | F36: Gas | G36: Distribution | H36: Weighted average price cap | I36: Calendar | J36: December | K36: 5 | L36: 5 | M36: x | O36: 6 Nexus Court | Q36: MULGRAVE | R36: Vic | S36: 3149 | Y36: Stephanie McDougall | Z36: 03 8846 9538 | AA36: Stephanie.McDougall@ue.com.au | AN36: Multinet Gas
B37: Murraylink | C37: Murraylink | D37: 79181207909 | E37: SA | F37: Electricity | G37: Transmission | H37: Revenue cap | I37: Financial | J37: June | K37: 5 | L37: 5 | M37: 5 | N37: transmission determination | O37: Level 19 | P37: 580 George Street | Q37: SYDNEY | R37: NSW | S37: 2000 | Y37: Scott Young | Z37: 02 9275 0031 | AA37: scott.young@apa.com.au | AI37: CBD | AJ37: Urban | AK37: Short rural | AL37: Long rural | AN37: Murraylink
B38: Power and Water | C38: Power and Water Corporation | D38: 15947352360 | E38: NT | F38: Electricity | G38: Distribution | H38: Revenue cap | I38: Financial | J38: June | K38: 5 | L38: 5 | M38: x | N38: distribution determination | O38: GPO Box 1921 | Q38: DARWIN | R38: NT | S38: 0801 | T38: GPO Box 1921 | V38: DARWIN | W38: NT | X38: 0801 | Y38: Lucy Moon | Z38: 08 8924 5822 | AA38: Lucy.Moon@powerwater.com.au | AC38: YES | AD38: YES | AE38: YES | AF38: YES | AG38: NO
B39: Powercor Australia | C39: Powercor Australia | D39: 89064651109 | E39: Vic | F39: Electricity | G39: Distribution | H39: Revenue cap | I39: Calendar | J39: December | K39: 5 | L39: 5 | M39: 2 | N39: 2016-20 Distribution Determination | O39: 40 Market Street | Q39: MELBOURNE | R39: Vic | S39: 3000 | T39: Locked bag 14090 | V39: MELBOURNE | W39: VIC | X39: 8001 | Y39: Hannah Williams | Z39: 03 9683 4088 | AA39: hwilliams@powercor.com.au | AE39: YES | AF39: YES | AG39: NO | AI39: CBD | AJ39: Urban | AK39: Short rural | AL39: Long rural | AN39: Powercor Australia
B40: Powerlink | C40: Queensland Electricity Transmission Corporation Limited trading as Powerlink Queensland | D40: 82078849233 | E40: Qld | F40: Electricity | G40: Transmission | H40: Revenue cap | I40: Financial | J40: June | K40: 5 | L40: 5 | M40: 5 | N40: transmission determination | O40: 33 Harold St | Q40: VIRGINIA | R40: Qld | S40: 4014 | T40: PO Box 1193 | V40: VIRGINIA | W40: QLD | X40: 4014 | Y40: Jennifer Harris | Z40: 07 3860 2667 | AA40: jharris@powerlink.com.au | AI40: CBD | AJ40: Urban | AK40: Short rural | AL40: Long rural | AN40: Powerlink
B41: Roma to Brisbane Pipeline | C41: APT Petroleum Pipelines Limited t/a Roma to Brisbane Pipeline | D41: 009 737 393 | E41: Qld | F41: Gas | G41: Transmission | H41: Weighted average price cap | I41: Financial | J41: June | K41: 5 | L41: 5 | M41: x | N41: n/a | O41: 580 George Street | Q41: SYDNEY | R41: NSW | S41: 2000 | T41: PO Box R41 | V41: ROYAL EXCHANGE | W41: NSW | X41: 1225 | Y41: Mark Allen | Z41: 02 9275 0010 | AA41: mark.allen@apa.com.au | AI41: CBD | AJ41: Urban | AK41: Short rural | AL41: Long rural | AN41: Roma to Brisbane Pipeline
B42: SA Power Networks | C42: SA Power Networks | D42: 13332330749 | E42: SA | F42: Electricity | G42: Distribution | H42: Revenue cap | I42: Financial | J42: June | K42: 5 | L42: 5 | M42: 5 | N42: 2015-20 Distribution Determination | O42: 1 Anzac Highway | Q42: KESWICK | R42: SA | S42: 5035 | T42: GPO Box 77 | V42: ADELAIDE | W42: SA | X42: 5000 | Y42: Richard Sibly | Z42: 08 8404 5613 | AA42: richard.sibly@sapowernetworks.com.au | AE42: YES | AF42: YES | AG42: NO | AI42: CBD | AJ42: Urban | AK42: Short rural | AL42: Long rural | AN42: SA Power Networks
B43: TasNetworks (D) | C43: TasNetworks (D) | D43: 24167357299 | E43: Tas | F43: Electricity | G43: Distribution | H43: Revenue cap | I43: Financial | J43: June | K43: 5 | L43: 5 | M43: 5 | N43: distribution determination | O43: 1-7 Maria Street | Q43: LENAH VALLEY | R43: Tas | S43: 7008 | T43: PO Box 606 | V43: MOONAH | W43: Tas | X43: 7009 | Y43: John Sayers | Z43: 03 6271 6469 | AA43: john.sayers@tasnetworks.com.au | AE43: YES | AF43: YES | AG43: YES | AI43: Critical Infrastructure | AJ43: High density commercial | AK43: Urban | AL43: High density rural | AM43: Low density rural | AN43: TasNetworks (D)
B44: TasNetworks (T) | C44: TasNetworks (T) | D44: 24167357299 | E44: Tas | F44: Electricity | G44: Transmission | H44: Revenue cap | I44: Financial | J44: June | K44: 5 | L44: 5 | M44: 5 | N44: transmission determination | O44: 1-7 Maria Street | Q44: LENAH VALLEY | R44: Tas | S44: 7008 | T44: PO Box 606 | V44: MOONAH | W44: Tas | X44: 7009 | Y44: John Sayers | Z44: 03 6271 6469 | AA44: john.sayers@tasnetworks.com.au | AI44: CBD | AJ44: Urban | AK44: Short rural | AL44: Long rural | AN44: TasNetworks (T)
B45: TransGrid | C45: NSW Electricity Networks Operations Pty Ltd trading as TransGrid | D45: 609169959 | E45: NSW | F45: Electricity | G45: Transmission | H45: Revenue cap | I45: Financial | J45: June | K45: 5 | L45: 4 | M45: 5 | N45: transmission determination | O45: 180 Thomas Street | Q45: SYDNEY | R45: NSW | S45: 2000 | T45: PO Box A1000 | V45: SYDNEY SOUTH | W45: NSW | X45: 1235 | Y45: Garrie Chubb | Z45: 0408 210 221 | AA45: garrie.chubb@transgrid.com.au | AI45: CBD | AJ45: Urban | AK45: Short rural | AL45: Long rural | AN45: TransGrid
B46: United Energy | C46: United Energy | D46: 70064651029 | E46: Vic | F46: Electricity | G46: Distribution | H46: Revenue cap | I46: Calendar | J46: December | K46: 5 | L46: 5 | M46: 2 | N46: 2016-20 Distribution Determination | O46: Level 3 | P46: 6 Nexus Court | Q46: MULGRAVE | R46: Vic | S46: 3149 | T46: PO Box 449 | V46: MOUNT WAVERLEY | W46: VIC | X46: 3170 | Y46: Mathew Abraham | Z46: 03 8846 9758 | AA46: mathew.abraham@ue.com.au | AE46: YES | AF46: NO | AG46: NO | AI46: CBD | AJ46: Urban | AK46: Short rural | AL46: Long rural | AN46: United Energy
B47: Western Power (D) | C47: Western Power (D) | D47: 18540492861 | E47: WA | F47: Electricity | G47: Distribution | H47: Revenue cap | I47: Financial | J47: June | K47: 12 | L47: 4 | M47: x | N47: distribution determination | O47: 363 Wellington Street | Q47: PERTH | R47: WA | S47: 6000 | T47: GPO Box L921 | V47: PERTH | W47: WA | X47: 6842 | Y47: Judy Hunter | Z47: 08 9326 6239 | AA47: judy.hunter@westernpower.com.au | AE47: YES | AF47: YES | AG47: NO | AH47: NO | AI47: CBD | AJ47: Urban | AK47: Short rural | AL47: Long rural | AN47: Western Power (D)
B48: Western Power (T) | C48: Western Power (T) | D48: 18540492861 | E48: WA | F48: Electricity | G48: Transmission | H48: Revenue cap | I48: Financial | J48: June | K48: 12 | L48: 4 | M48: x | N48: transmission determination | O48: 363 Wellington Street | Q48: PERTH | R48: WA | S48: 6000 | T48: GPO Box L921 | V48: PERTH | W48: WA | X48: 6842 | Y48: Judy Hunter | Z48: 08 9326 6239 | AA48: judy.hunter@westernpower.com.au | AE48: YES | AF48: YES | AG48: NO | AI48: CBD | AJ48: Urban | AK48: Short rural | AL48: Long rural | AN48: Western Power (T)
W51: For EB & Reset RINs only | AC51: For AARs only
B52: The Reg Year Ending (dms_RYE) must be set to the last year of the regulatory period. For forecast data is is usually (FRCP_y5) for actual it is a single year (CRY). For historical actual data the RYE will need to be set manually in the business details sheet by setting the dms_Multiyear_flag to 1 and putting the correct value in 'dms_Specified_FinalYear. See cells C67:C68 | G52: =IF(dms_RPT="financial",VALUE(LEFT(CRCP_y1,4)-1)&"-"&TEXT(VALUE(RIGHT(CRCP_y1,2)-1),"00"),VALUE(LEFT(CRCP_y1,4)-1)) -> 2010-11 | N52: Drop down selector box for CA & Reset RINs. | O52: For CA & Reset RINs only | W52: for DNSP only | AC52: For DNSPs only | AI52: Reason for interruption | AJ52: dms_Reason_Interruption_Detailed | AK52: dms_Reason_Interruption
B53: dms_Model_List | C53: DELETE NR 'CRY' IF NOT AN ANNUAL RIN (EB, CA , ARR) | E53: dms_RYE_Formula_Result | N53: dms_0203_ProjectType | O53: dms_020303_01_UOM | P53: dms_020501_01_UOM | Q53: dms_020501_02_UOM | R53: dms_020501_03_UOM | S53: dms_020501_04_UOM | T53: dms_020603_01_UOM | U53: dms_040102_01_UOM | V53: dms_040102_04_UOM | W53: dms_030601_01_UOM | X53: dms_030601_02_UOM | Y53: dms_030701_01_UOM | Z53: dms_030702_01_UOM | AA53: dms_030703_01_UOM | AC53: dms_030605_UOM | AD53: dms_03060703_UOM | AI53: Animal | AJ53: Animal impact | AK53: Animal
B54: ARR | C54: ANNUAL REPORTING STATEMENT | E54: =LEFT(dms_SingleYear_FinalYear_Result,2)&RIGHT(dms_SingleYear_FinalYear_Result,2) -> 2017 | F54: =LEFT(dms_SingleYear_FinalYear_Result,2)&RIGHT(dms_SingleYear_FinalYear_Result,2) | H54: Formula errors are OK | N54: New line on new route - single circuit | O54: Circuit line length in km | P54: 0's | Q54: 0's | R54: 0's | S54: 0's | T54: 0's | U54: 0's | V54: days | W54: minutes/customer | X54: minutes/customer | Y54: Customer / km | Z54: % | AA54: km | AC54: number | AD54: number | AJ54: Animal nesting/burrowing, etc and other | AK54: Asset failure
B55: CA | C55: CATEGORY ANALYSIS | E55: =LEFT(dms_SingleYear_FinalYear_Result,2)&RIGHT(dms_SingleYear_FinalYear_Result,2) -> 2017 | F55: =LEFT(dms_SingleYear_FinalYear_Result,2)&RIGHT(dms_SingleYear_FinalYear_Result,2) | H55: Formula errors are OK | N55: New line on new route - dual circuit | O55: Circuit line length in km | P55: 0's | Q55: 0's | R55: 0's | S55: 0's | T55: 0's | U55: 0's | V55: 0's | W55: minutes/customer | X55: minutes/customer | Y55: MWh/customer | Z55: Number of spans | AC55: number | AD55: number | AJ55: Other | AK55: Other
B56: CPI | C56: CPI | N56: New line on new route - other | O56: Circuit line length in km | P56: MVA added | Q56: MVA added | R56: MVA added | S56: MVA added | T56: 0's | U56: 0's | V56: $0s | W56: interruptions/customer | X56: interruptions/customer | Y56: kVA / customer | Z56: Number of spans | AC56: number | AD56: number | AI56: Asset failure | AJ56: LV | AK56: Overloads
B57: EB | C57: ECONOMIC BENCHMARKING | E57: =LEFT(dms_SingleYear_FinalYear_Result,2)&RIGHT(dms_SingleYear_FinalYear_Result,2) -> 2017 | F57: =LEFT(dms_SingleYear_FinalYear_Result,2)&RIGHT(dms_SingleYear_FinalYear_Result,2) | H57: Formula errors are OK | N57: Line rebuild over existing route - single circuit | O57: Circuit line length in km | P57: 0's | Q57: 0's | R57: 0's | S57: 0's | T57: 0's | U57: $0s | V57: 0's | W57: interruptions/customer | X57: interruptions/customer | Z57: Number of spans | AC57: number | AD57: number | AJ57: Distribution substation | AK57: Planned
B58: PTRM | C58: POST TAX REVENUE MODEL | E58: =LEFT(dms_MultiYear_FinalYear_Result,2)&RIGHT(dms_MultiYear_FinalYear_Result,2) -> 2021 | F58: =LEFT(dms_MultiYear_FinalYear_Result,2)&RIGHT(dms_MultiYear_FinalYear_Result,2) | N58: Line rebuild over existing route - dual circuit | O58: Number | P58: total spend $0s | Q58: total spend $0s | R58: total spend $0s | S58: total spend $0s | T58: (per cent) | Z58: Number of spans | AC58: number | AD58: (per cent) | AJ58: HV | AK58: Network business
B59: Reset | C59: REGULATORY REPORTING STATEMENT | E59: =LEFT(dms_MultiYear_FinalYear_Result,2)&RIGHT(dms_MultiYear_FinalYear_Result,2) -> 2021 | F59: =LEFT(dms_MultiYear_FinalYear_Result,2)&RIGHT(dms_MultiYear_FinalYear_Result,2) | H59: Formula errors are OK | N59: Reconductor - Single circuit | O59: Number | P59: net circuit km added | Q59: net circuit km added | R59: net circuit km added | S59: net circuit km added | Z59: Years | AC59: number | AJ59: Zone substation | AK59: Third party
B60: RFM | C60: ROLL FORWARD MODEL | E60: =LEFT(dms_CRCP_FinalYear_Result,2)&RIGHT(dms_CRCP_FinalYear_Result,2) -> 2017 | F60: =LEFT(dms_CRCP_FinalYear_Result,2)&RIGHT(dms_CRCP_FinalYear_Result,2) | N60: Reconductor - Dual circuit | O60: Number | P60: total spend $0s | Q60: total spend $0s | R60: total spend $0s | S60: total spend $0s | Z60: Years | AC60: number | AJ60: Subtransmission | AK60: Unknown
B61: WACC | C61: WEIGHTED AVERAGE COST OF CAPITAL | E61: =LEFT(dms_MultiYear_FinalYear_Result,2)&RIGHT(dms_MultiYear_FinalYear_Result,2) -> 2021 | F61: =LEFT(dms_MultiYear_FinalYear_Result,2)&RIGHT(dms_MultiYear_FinalYear_Result,2) | N61: Other | P61: net circuit km added | Q61: net circuit km added | R61: net circuit km added | S61: net circuit km added | Z61: Trees | AC61: number | AI61: Other | AJ61: insert description of 'other' | AK61: Vegetation
P62: total spend $0s | Q62: total spend $0s | R62: total spend $0s | S62: total spend $0s | Z62: Trees | AC62: number | AI62: Overloads | AJ62: - | AK62: Weather
B63: dms_DataQuality_List | P63: 0's | R63: $0s | Z63: Defects | AC63: number | AI63: Planned | AJ63: - | AK63: 2 - STPIS Exclusion (3.3)(a)
B64: Actual | P64: 0's | Z64: Defects | AC64: number | AI64: Network business | AJ64: Network error | AK64: 3 - STPIS Exclusion (3.3)(a)
B65: Estimate | P65: 0's | Z65: Spans | AC65: number | AJ65: Switching and protection error | AK65: 4 - STPIS Exclusion (3.3)(a)
B66: Consolidated | P66: $0s | Z66: km | AC66: (per cent) | AI66: Third party | AJ66: Fire | AK66: 5 - STPIS Exclusion (3.3)(a)
B67: Recast | Z67: Spans | AC67: (per cent) | AJ67: Other | AK67: 6 - STPIS Exclusion (3.3)(a)
B68: Public | AJ68: Dig-in | AK68: 7 - STPIS Exclusion (3.3)(a)
AJ69: Unauthorised access
B70: For all files either AER or business needs to be able to specify the type of submission | C70: For PTRM & RFM templates we must provide a choice in case they change their form of control - otherwise it is drawn from the business specific lookup table above. | O70: For PTRM files - this field set the text for the named range "DMS_Xfactor" which in all cases is simply the text "x factors" - this saves putting in each old gas PTRM file | W70: for TNSP only | AJ70: Vehicle impact
B71: dms_SourceList | C71: dms_FormControl_Choices | O71: DMS_Xfactor | W71: dms_030601_01_UOM | Y71: dms_030701_01_UOM | Z71: dms_030702_01_UOM | AI71: Unknown | AJ71: Unknown
B72: After appeal | C72: Revenue cap | O72: x factors | W72: % | Y72: Number of spans | Z72: km | AI72: Vegetation | AJ72: Blow-in/Fall-in - NSP responsibility
B73: Draft decision | C73: Revenue yield | W73: number | Y73: Years | Z73: % | AJ73: Grow-in - NSP responsibility
B74: Final decision | C74: Weighted average price cap | W74: number | Y74: Trees | Z74: km | AJ74: Blow-in/Fall-in - Other responsible party
B75: PTRM update 1 | W75: % | Y75: Defects | Z75: number | AJ75: Grow-in - Other responsible party
B76: PTRM update 2 | W76: number | Y76: Number of spans | AI76: Weather
B77: PTRM update 3 | W77: number | Y77: km | AI77: 2 - STPIS Exclusion (3.3)(a)
B78: PTRM update 4 | W78: % | Y78: km | AI78: 3 - STPIS Exclusion (3.3)(a)
B79: PTRM update 5 | W79: number | Y79: Number of spans | AI79: 4 - STPIS Exclusion (3.3)(a)
B80: PTRM update 6 | W80: number | AI80: 5 - STPIS Exclusion (3.3)(a)
B81: PTRM update 7 | W81: % | AI81: 6 - STPIS Exclusion (3.3)(a)
B82: Regulatory proposal | W82: number | AI82: 7 - STPIS Exclusion (3.3)(a)
B83: Reporting | W83: %
B84: Revised regulatory proposal | W84: number
W85: %
W86: number
B90: These are indeces and lookup values for various dates. All step from the value placed in FRCP_y1 on the business and other details worksheet | L90: These date tables are currently used in the Recast templates to provide column headings and conditional formatting
B91: dms_FRCPlength_Num_List | C91: dms_FinalYear_List | D91: dms_CRCPlength_Num_List | E91: dms_CFinalYear_List | F91: dms_FRCP_years | H91: dms_CRCP_years | J91: dms_CRCP_index | L91: CRY from input cell on business sheet | M91: CRY - financial | N91: dms_FinYears | O91: CRY calendar | P91: dms_CalYears
B92: 1 | C92: dms_FRCP_y1 | D92: 1 | E92: CRCP_y1 | F92: =FRCP_y1 -> 2016-17 | G92: dms_FRCP_y1 | H92: =IF(dms_RPT="financial",VALUE(LEFT(dms_FRCP_y1,4)-1)&"-"&TEXT(VALUE(MID(dms_FRCP_y1,3,2)),"00"),VALUE(LEFT(dms_FRCP_y1,4)-1)) -> 2015-16 | I92: dms_CRCP_yZ | J92: 1 | L92: =CRY -> 2016-17 | M92: =VALUE(LEFT(CRY,4))&"-"&TEXT(MID(CRY,3,2)+1,"00") -> 2016-17 | N92: dms_CRYf_y1 | O92: =VALUE(LEFT(CRY,4)+1) -> 2017 | P92: dms_CRYc_y1
B93: 2 | C93: dms_FRCP_y2 | D93: 2 | E93: CRCP_y2 | F93: =IF(dms_RPT="financial",VALUE(LEFT(dms_FRCP_y1,4)+1)&"-"&TEXT(VALUE(RIGHT(dms_FRCP_y1,2)+1),"00"),VALUE(LEFT(dms_FRCP_y1,4)+1)) -> 2017-18 | G93: dms_FRCP_y2 | H93: =IF(dms_RPT="financial",VALUE(LEFT(dms_CRCP_yZ,4)-1)&"-"&TEXT(VALUE(MID(dms_CRCP_yZ,3,2)),"00"),VALUE(LEFT(dms_CRCP_yZ,4)-1)) -> 2014-15 | I93: dms_CRCP_yY | J93: 2 | M93: =VALUE(LEFT(dms_CRYf_y1,4)+1)&"-"&TEXT(MID(dms_CRYf_y1,3,2)+2,"00") -> 2017-18 | N93: dms_CRYf_y2 | O93: =VALUE(LEFT(dms_CRYc_y1,4)+1) -> 2018 | P93: dms_CRYc_y2
B94: 3 | C94: dms_FRCP_y3 | D94: 3 | E94: CRCP_y3 | F94: =IF(dms_RPT="financial",VALUE(LEFT(dms_FRCP_y2,4)+1)&"-"&TEXT(VALUE(RIGHT(dms_FRCP_y2,2)+1),"00"),VALUE(LEFT(dms_FRCP_y2,4)+1)) -> 2018-19 | G94: dms_FRCP_y3 | H94: =IF(dms_RPT="financial",VALUE(LEFT(dms_CRCP_yY,4)-1)&"-"&TEXT(VALUE(MID(dms_CRCP_yY,3,2)),"00"),VALUE(LEFT(dms_CRCP_yY,4)-1)) -> 2013-14 | I94: dms_CRCP_yX | J94: 3 | M94: =VALUE(LEFT(dms_CRYf_y2,4)+1)&"-"&TEXT(MID(dms_CRYf_y2,3,2)+2,"00") -> 2018-19 | N94: dms_CRYf_y3 | O94: =VALUE(LEFT(dms_CRYc_y2,4)+1) -> 2019 | P94: dms_CRYc_y3
B95: 4 | C95: dms_FRCP_y4 | D95: 4 | E95: CRCP_y4 | F95: =IF(dms_RPT="financial",VALUE(LEFT(dms_FRCP_y3,4)+1)&"-"&TEXT(VALUE(RIGHT(dms_FRCP_y3,2)+1),"00"),VALUE(LEFT(dms_FRCP_y3,4)+1)) -> 2019-20 | G95: dms_FRCP_y4 | H95: =IF(dms_RPT="financial",VALUE(LEFT(dms_CRCP_yX,4)-1)&"-"&TEXT(VALUE(MID(dms_CRCP_yX,3,2)),"00"),VALUE(LEFT(dms_CRCP_yX,4)-1)) -> 2012-13 | I95: dms_CRCP_yW | J95: 4 | M95: =VALUE(LEFT(dms_CRYf_y3,4)+1)&"-"&TEXT(MID(dms_CRYf_y3,3,2)+2,"00") -> 2019-20 | N95: dms_CRYf_y4 | O95: =VALUE(LEFT(dms_CRYc_y3,4)+1) -> 2020 | P95: dms_CRYc_y4
B96: 5 | C96: dms_FRCP_y5 | D96: 5 | E96: CRCP_y5 | F96: =IF(dms_RPT="financial",VALUE(LEFT(dms_FRCP_y4,4)+1)&"-"&TEXT(VALUE(RIGHT(dms_FRCP_y4,2)+1),"00"),VALUE(LEFT(dms_FRCP_y4,4)+1)) -> 2020-21 | G96: dms_FRCP_y5 | H96: =IF(dms_RPT="financial",VALUE(LEFT(dms_CRCP_yW,4)-1)&"-"&TEXT(VALUE(MID(dms_CRCP_yW,3,2)),"00"),VALUE(LEFT(dms_CRCP_yW,4)-1)) -> 2011-12 | I96: dms_CRCP_yV | J96: 5 | M96: =VALUE(LEFT(dms_CRYf_y4,4)+1)&"-"&TEXT(MID(dms_CRYf_y4,3,2)+2,"00") -> 2020-21 | N96: dms_CRYf_y5 | O96: =VALUE(LEFT(dms_CRYc_y4,4)+1) -> 2021 | P96: dms_CRYc_y5
B97: 6 | C97: dms_FRCP_y6 | D97: 6 | E97: CRCP_y6 | F97: =IF(dms_RPT="financial",VALUE(LEFT(dms_FRCP_y5,4)+1)&"-"&TEXT(VALUE(RIGHT(dms_FRCP_y5,2)+1),"00"),VALUE(LEFT(dms_FRCP_y5,4)+1)) -> 2021-22 | G97: dms_FRCP_y6 | H97: =IF(dms_RPT="financial",VALUE(LEFT(dms_CRCP_yV,4)-1)&"-"&TEXT(VALUE(MID(dms_CRCP_yV,3,2)),"00"),VALUE(LEFT(dms_CRCP_yV,4)-1)) -> 2010-11 | I97: dms_CRCP_yU | J97: 6 | M97: =VALUE(LEFT(dms_CRYf_y5,4)+1)&"-"&TEXT(MID(dms_CRYf_y5,3,2)+2,"00") -> 2021-22 | N97: dms_CRYf_y6 | O97: =VALUE(LEFT(dms_CRYc_y5,4)+1) -> 2022 | P97: dms_CRYc_y6
B98: 7 | C98: dms_FRCP_y7 | D98: 7 | E98: CRCP_y7 | F98: =IF(dms_RPT="financial",VALUE(LEFT(dms_FRCP_y6,4)+1)&"-"&TEXT(VALUE(RIGHT(dms_FRCP_y6,2)+1),"00"),VALUE(LEFT(dms_FRCP_y6,4)+1)) -> 2022-23 | G98: dms_FRCP_y7 | H98: =IF(dms_RPT="financial",VALUE(LEFT(dms_CRCP_yU,4)-1)&"-"&TEXT(VALUE(MID(dms_CRCP_yU,3,2)),"00"),VALUE(LEFT(dms_CRCP_yU,4)-1)) -> 2009-10 | I98: dms_CRCP_yT | J98: 7 | M98: =VALUE(LEFT(dms_CRYf_y6,4)+1)&"-"&TEXT(MID(dms_CRYf_y6,3,2)+2,"00") -> 2022-23 | N98: dms_CRYf_y7 | O98: =VALUE(LEFT(dms_CRYc_y6,4)+1) -> 2023 | P98: dms_CRYc_y7
B99: 8 | C99: dms_FRCP_y8 | D99: 8 | E99: CRCP_y8 | F99: =IF(dms_RPT="financial",VALUE(LEFT(dms_FRCP_y7,4)+1)&"-"&TEXT(VALUE(RIGHT(dms_FRCP_y7,2)+1),"00"),VALUE(LEFT(dms_FRCP_y7,4)+1)) -> 2023-24 | G99: dms_FRCP_y8 | H99: =IF(dms_RPT="financial",VALUE(LEFT(dms_CRCP_yT,4)-1)&"-"&TEXT(VALUE(MID(dms_CRCP_yT,3,2)),"00"),VALUE(LEFT(dms_CRCP_yT,4)-1)) -> 2008-09 | I99: dms_CRCP_yS | J99: 8 | M99: =VALUE(LEFT(dms_CRYf_y7,4)+1)&"-"&TEXT(MID(dms_CRYf_y7,3,2)+2,"00") -> 2023-24 | N99: dms_CRYf_y8 | O99: =VALUE(LEFT(dms_CRYc_y7,4)+1) -> 2024 | P99: dms_CRYc_y8
B100: 9 | C100: dms_FRCP_y9 | D100: 9 | E100: CRCP_y9 | F100: =IF(dms_RPT="financial",VALUE(LEFT(dms_FRCP_y8,4)+1)&"-"&TEXT(VALUE(RIGHT(dms_FRCP_y8,2)+1),"00"),VALUE(LEFT(dms_FRCP_y8,4)+1)) -> 2024-25 | G100: dms_FRCP_y9 | H100: =IF(dms_RPT="financial",VALUE(LEFT(dms_CRCP_yS,4)-1)&"-"&TEXT(VALUE(MID(dms_CRCP_yS,3,2)),"00"),VALUE(LEFT(dms_CRCP_yS,4)-1)) -> 2007-08 | I100: dms_CRCP_yR | J100: 9 | M100: =VALUE(LEFT(dms_CRYf_y8,4)+1)&"-"&TEXT(MID(dms_CRYf_y8,3,2)+2,"00") -> 2024-25 | N100: dms_CRYf_y9 | O100: =VALUE(LEFT(dms_CRYc_y8,4)+1) -> 2025 | P100: dms_CRYc_y9
B101: 10 | C101: dms_FRCP_y10 | D101: 10 | E101: CRCP_y10 | F101: =IF(dms_RPT="financial",VALUE(LEFT(dms_FRCP_y9,4)+1)&"-"&TEXT(VALUE(RIGHT(dms_FRCP_y9,2)+1),"00"),VALUE(LEFT(dms_FRCP_y9,4)+1)) -> 2025-26 | G101: dms_FRCP_y10 | H101: =IF(dms_RPT="financial",VALUE(LEFT(dms_CRCP_yR,4)-1)&"-"&TEXT(VALUE(MID(dms_CRCP_yR,3,2)),"00"),VALUE(LEFT(dms_CRCP_yR,4)-1)) -> 2006-07 | I101: dms_CRCP_yQ | J101: 10 | M101: =VALUE(LEFT(dms_CRYf_y9,4)+1)&"-"&TEXT(MID(dms_CRYf_y9,3,2)+2,"00") -> 2025-26 | N101: dms_CRYf_y10 | O101: =VALUE(LEFT(dms_CRYc_y9,4)+1) -> 2026 | P101: dms_CRYc_y10
B102: 11 | C102: dms_FRCP_y11 | D102: 11 | E102: CRCP_y11 | F102: =IF(dms_RPT="financial",VALUE(LEFT(dms_FRCP_y10,4)+1)&"-"&TEXT(VALUE(RIGHT(dms_FRCP_y10,2)+1),"00"),VALUE(LEFT(dms_FRCP_y10,4)+1)) -> 2026-27 | G102: dms_FRCP_y11 | H102: =IF(dms_RPT="financial",VALUE(LEFT(dms_CRCP_yQ,4)-1)&"-"&TEXT(VALUE(MID(dms_CRCP_yQ,3,2)),"00"),VALUE(LEFT(dms_CRCP_yQ,4)-1)) -> 2005-06 | I102: dms_CRCP_yP | J102: 11 | M102: =VALUE(LEFT(dms_CRYf_y10,4)+1)&"-"&TEXT(MID(dms_CRYf_y10,3,2)+2,"00") -> 2026-27 | N102: dms_CRYf_y11 | O102: =VALUE(LEFT(dms_CRYc_y10,4)+1) -> 2027 | P102: dms_CRYc_y11
B103: 12 | C103: dms_FRCP_y12 | D103: 12 | E103: CRCP_y12 | F103: =IF(dms_RPT="financial",VALUE(LEFT(dms_FRCP_y11,4)+1)&"-"&TEXT(VALUE(RIGHT(dms_FRCP_y11,2)+1),"00"),VALUE(LEFT(dms_FRCP_y11,4)+1)) -> 2027-28 | G103: dms_FRCP_y12 | H103: =IF(dms_RPT="financial",VALUE(LEFT(dms_CRCP_yP,4)-1)&"-"&TEXT(VALUE(MID(dms_CRCP_yP,3,2)),"00"),VALUE(LEFT(dms_CRCP_yP,4)-1)) -> 2004-05 | I103: dms_CRCP_yO | J103: 12 | M103: =VALUE(LEFT(dms_CRYf_y11,4)+1)&"-"&TEXT(MID(dms_CRYf_y11,3,2)+2,"00") -> 2027-28 | N103: dms_CRYf_y12 | O103: =VALUE(LEFT(dms_CRYc_y11,4)+1) -> 2028 | P103: dms_CRYc_y12
B104: 13 | C104: dms_FRCP_y13 | D104: 13 | E104: CRCP_y13 | F104: =IF(dms_RPT="financial",VALUE(LEFT(dms_FRCP_y12,4)+1)&"-"&TEXT(VALUE(RIGHT(dms_FRCP_y12,2)+1),"00"),VALUE(LEFT(dms_FRCP_y12,4)+1)) -> 2028-29 | G104: dms_FRCP_y13 | H104: =IF(dms_RPT="financial",VALUE(LEFT(dms_CRCP_yO,4)-1)&"-"&TEXT(VALUE(MID(dms_CRCP_yO,3,2)),"00"),VALUE(LEFT(dms_CRCP_yO,4)-1)) -> 2003-04 | I104: dms_CRCP_yN | J104: 13 | M104: =VALUE(LEFT(dms_CRYf_y12,4)+1)&"-"&TEXT(MID(dms_CRYf_y12,3,2)+2,"00") -> 2028-29 | N104: dms_CRYf_y13 | O104: =VALUE(LEFT(dms_CRYc_y12,4)+1) -> 2029 | P104: dms_CRYc_y13
B105: 14 | C105: dms_FRCP_y14 | D105: 14 | E105: CRCP_y14 | F105: =IF(dms_RPT="financial",VALUE(LEFT(dms_FRCP_y13,4)+1)&"-"&TEXT(VALUE(RIGHT(dms_FRCP_y13,2)+1),"00"),VALUE(LEFT(dms_FRCP_y13,4)+1)) -> 2029-30 | G105: dms_FRCP_y14 | H105: =IF(dms_RPT="financial",VALUE(LEFT(dms_CRCP_yN,4)-1)&"-"&TEXT(VALUE(MID(dms_CRCP_yN,3,2)),"00"),VALUE(LEFT(dms_CRCP_yN,4)-1)) -> 2002-03 | I105: dms_CRCP_yM | J105: 14 | M105: =VALUE(LEFT(dms_CRYf_y13,4)+1)&"-"&TEXT(MID(dms_CRYf_y13,3,2)+2,"00") -> 2029-30 | N105: dms_CRYf_y14 | O105: =VALUE(LEFT(dms_CRYc_y13,4)+1) -> 2030 | P105: dms_CRYc_y14
B106: 15 | C106: dms_FRCP_y15 | D106: 15 | E106: CRCP_y15 | F106: =IF(dms_RPT="financial",VALUE(LEFT(dms_FRCP_y14,4)+1)&"-"&TEXT(VALUE(RIGHT(dms_FRCP_y14,2)+1),"00"),VALUE(LEFT(dms_FRCP_y14,4)+1)) -> 2030-31 | G106: dms_FRCP_y15 | H106: =IF(dms_RPT="financial",VALUE(LEFT(dms_CRCP_yM,4)-1)&"-"&TEXT(VALUE(MID(dms_CRCP_yM,3,2)),"00"),VALUE(LEFT(dms_CRCP_yM,4)-1)) -> 2001-02 | I106: dms_CRCP_yL | J106: 15 | M106: =VALUE(LEFT(dms_CRYf_y14,4)+1)&"-"&TEXT(MID(dms_CRYf_y14,3,2)+2,"00") -> 2030-31 | N106: dms_CRYf_y15 | O106: =VALUE(LEFT(dms_CRYc_y14,4)+1) -> 2031 | P106: dms_CRYc_y15
M107: =VALUE(LEFT(dms_CRYf_y15,4)+1)&"-"&TEXT(MID(dms_CRYf_y15,3,2)+2,"00") -> 2031-32 | N107: dms_CRYf_y16 | O107: =VALUE(LEFT(dms_CRYc_y15,4)+1) -> 2032 | P107: dms_CRYc_y16
B108: These are drop down lists for businesses to select the correct FRCP_y1 on the business and other details worksheet. This also populates the column headings in the worksheets | M108: =VALUE(LEFT(dms_CRYf_y16,4)+1)&"-"&TEXT(MID(dms_CRYf_y16,3,2)+2,"00") -> 2032-33 | N108: dms_CRYf_y17 | O108: =VALUE(LEFT(dms_CRYc_y16,4)+1) -> 2033 | P108: dms_CRYc_y17
B109: dms_RCP_fyear_list | C109: dms_CRY_ListF | D109: dms_CRY_ListC | E109: dms_RCP_cyear_list | F109: dms_FRCP_fyear_list | G109: dms_FRCP_ListF | H109: dms_FRCP_ListC | I109: dms_FRCP_cyear_list | M109: =VALUE(LEFT(dms_CRYf_y17,4)+1)&"-"&TEXT(MID(dms_CRYf_y17,3,2)+2,"00") -> 2033-34 | N109: dms_CRYf_y18 | O109: =VALUE(LEFT(dms_CRYc_y17,4)+1) -> 2034 | P109: dms_CRYc_y18
B110: dms_fy1 | C110: 2006-07 | D110: 2007 | E110: dms_cy1 | F110: dms_frcp_fy1 | G110: 2015-16 | H110: 2016 | I110: dms_crcp_cy1 | M110: =VALUE(LEFT(dms_CRYf_y18,4)+1)&"-"&TEXT(MID(dms_CRYf_y18,3,2)+2,"00") -> 2034-35 | N110: dms_CRYf_y19 | O110: =VALUE(LEFT(dms_CRYc_y18,4)+1) -> 2035 | P110: dms_CRYc_y19
B111: dms_fy2 | C111: 2007-08 | D111: 2008 | E111: dms_cy2 | F111: dms_frcp_fy2 | G111: 2016-17 | H111: 2017 | I111: dms_crcp_cy2 | M111: =VALUE(LEFT(dms_CRYf_y19,4)+1)&"-"&TEXT(MID(dms_CRYf_y19,3,2)+2,"00") -> 2035-36 | N111: dms_CRYf_y20 | O111: =VALUE(LEFT(dms_CRYc_y19,4)+1) -> 2036 | P111: dms_CRYc_y20
B112: dms_fy3 | C112: 2008-09 | D112: 2009 | E112: dms_cy3 | F112: dms_frcp_fy3 | G112: 2017-18 | H112: 2018 | I112: dms_crcp_cy3
B113: dms_fy4 | C113: 2009-10 | D113: 2010 | E113: dms_cy4 | F113: dms_frcp_fy4 | G113: 2018-19 | H113: 2019 | I113: dms_crcp_cy4
B114: dms_fy5 | C114: 2010-11 | D114: 2011 | E114: dms_cy5 | F114: dms_frcp_fy5 | G114: 2019-20 | H114: 2020 | I114: dms_crcp_cy5
B115: dms_fy6 | C115: 2011-12 | D115: 2012 | E115: dms_cy6 | F115: dms_frcp_fy6 | G115: 2020-21 | H115: 2021 | I115: dms_crcp_cy6
B116: dms_fy7 | C116: 2012-13 | D116: 2013 | E116: dms_cy7 | F116: dms_frcp_fy7 | G116: 2021-22 | H116: 2022 | I116: dms_crcp_cy7
B117: dms_fy8 | C117: 2013-14 | D117: 2014 | E117: dms_cy8 | F117: dms_frcp_fy8 | G117: 2022-23 | H117: 2023 | I117: dms_crcp_cy8 | L117: 2005-06 | M117: 2006
B118: dms_fy9 | C118: 2014-15 | D118: 2015 | E118: dms_cy9 | F118: dms_frcp_fy9 | G118: 2023-24 | H118: 2024 | I118: dms_crcp_cy9 | L118: 2006-07 | M118: 2007
B119: dms_fy10 | C119: 2015-16 | D119: 2016 | E119: dms_cy10 | F119: dms_frcp_fy10 | G119: 2024-25 | H119: 2025 | I119: dms_crcp_cy10 | L119: 2007-08 | M119: 2008
B120: dms_fy11 | C120: 2016-17 | D120: 2017 | E120: dms_cy11 | F120: dms_frcp_fy11 | G120: 2025-26 | H120: 2026 | I120: dms_crcp_cy11 | L120: 2008-09 | M120: 2009
B121: dms_fy12 | C121: 2017-18 | D121: 2018 | E121: dms_cy12 | F121: dms_frcp_fy12 | G121: 2026-27 | H121: 2027 | I121: dms_crcp_cy12 | L121: 2009-10 | M121: 2010
B122: dms_fy13 | C122: 2018-19 | D122: 2019 | E122: dms_cy13 | F122: dms_frcp_fy13 | G122: 2027-28 | H122: 2028 | I122: dms_crcp_cy13 | L122: 2010-11 | M122: 2011
B123: dms_fy14 | C123: 2019-20 | D123: 2020 | E123: dms_cy14 | F123: dms_frcp_fy14 | G123: 2028-29 | H123: 2029 | I123: dms_crcp_cy14 | L123: 2011-12 | M123: 2012
B124: dms_fy15 | C124: 2019-20 | D124: 2020 | E124: dms_cy15 | F124: dms_frcp_fy15 | G124: 2029-30 | H124: 2030 | I124: dms_crcp_cy15 | L124: 2012-13 | M124: 2013
B125: dms_fy16 | C125: 2020-21 | D125: 2021 | E125: dms_cy16 | L125: 2013-14 | M125: 2014
B126: dms_fy17 | C126: 2021-22 | D126: 2022 | E126: dms_cy17 | L126: 2014-15 | M126: 2015
B127: dms_fy18 | C127: 2022-23 | D127: 2023 | E127: dms_cy18 | L127: 2015-16 | M127: 2016
B128: dms_fy19 | C128: 2023-24 | D128: 2024 | E128: dms_cy19 | L128: 2016-17 | M128: 2017
B129: dms_fy20 | C129: 2024-25 | D129: 2025 | E129: dms_cy20 | L129: 2017-18 | M129: 2018
L130: 2018-19 | M130: 2019
L131: 2019-20 | M131: 2020
L132: 2020-21 | M132: 2021
L133: 2021-22 | M133: 2022
L134: 2022-23 | M134: 2023
L135: 2023-24 | M135: 2024
L136: 2024-25 | M136: 2025
L137: 2025-26 | M137: 2026
L138: 2026-27 | M138: 2027
L139: 2027-28 | M139: 2028
L140: 2028-29 | M140: 2029
L141: 2029-30 | M141: 2030
L142: 2030-31 | M142: 2031
L143: 2031-32 | M143: 2032
L144: 2032-33 | M144: 2033
L145: 2033-34 | M145: 2034
L146: 2034-35 | M146: 2035
L147: 2035-36 | M147: 2036

Sheet Instructions
B2: =CONCATENATE(dms_Segment," Network Service Provider") -> Transmission Network Service Provider
B3: Historical Reporting RIN Template
C4: =CONCATENATE("This template is to be used by ",dms_TradingName," to fulfil its reporting obligations to the AER.") -> This template is to be used by Powerlink to fulfil its reporting obligations to the AER.
C5: INSTRUCTIONS
C6: Complete the Business & other details worksheet before entering data or values in any other worksheets. The Business & other details worksheet is linked to other worksheets within the workbook and automatically generates certain column headings and conditional formatting.
C8: Identifying CONFIDENTIAL INFORMATION: Please use the macro at the top of each worksheet to identify confidential information.
C9: -Do this by selecting the cell or cells that contain confidential information and then run the Mark selection CONFIDENTIAL macro. This will format the cells a specific colour that is identified by the AER's database which in turn marks that information as confidential. -To reverse this, select the cell or cells and run the Return selection to NON-CONFIDENTIAL macro.
C11: UNITS OF MEASURE All amounts are to be unrounded and reported on a one for one basis: that is 1000 is to be entered as '1000'. Applicable units of measure may be identified in the table column headings or row descriptors.
C13: COLOUR CODING OF INPUT / NON-INPUT CELLS:
D14: Yellow = Input cell (mandatory)
D15: Darker yellow = input cell (mandatory)
D16: Orange = input cell (if data available)
D17: Grey = Not applicable/No inputs required
D18: . PLEASE DO NOT ENTER TEXT into cells that are to contain numeric data.
C21: WORKSHEET NAVIGATION Many tables in the worksheets have been "grouped" to allow for easy navigation. To ungroup or group data use the outline symbols in the left margin of excel (for Row groupings) or above the columns (for column groupings).
C23: RETURNING COMPLETED RESPONSES Please return four (4) files - using the locked template - to the AER: 1. A confidential version which must contain a complete set of all responses with confidential information marked using the Mark selected cells CONFIDENTIAL macro. 2. An actual and an estimate version with confidential information marked using the Mark selection CONFIDENTIAL macro and which has been completed using the locked template file provided by the AER. 3. A public version with confidential information either removed completely or aggregated in some form together with writtten consent to disclose the public version of the response. Use the drop down box on the Business and other details worksheet to identify the file as either confidential ('consolidated') or public. If the confidential and public versions of the consolidated file are exactly the same, only the public version of the file needs to be submitted to the AER.
C25: SUBMITTING AMENDED DATA TO THE AER If an NSP wishes to correct data previously submitted to the AER it should resubmit that data using the original completed submission as the starting point. Please make any necessary changes to the data. Data that is not being amended should be left unchanged. NSPs must identify the reason for the amendments in the Amendment Reason box on the Business and other details worksheet. NSPs may provide further details regarding any amendments in the Amendments worksheet. .
C26: NSP may use Amended Data macro to highlight cells that contain amended data. NB: if data is also CONFIDENTIAL, re-apply the Confidentiality macro after applying the Amended macro
C27: Please resubmit two (2) files - a confidential version and a public version of the amended submission to the AER

Sheet Contents
B1: REGULATORY REPORTING STATEMENT
B2: =INDEX(dms_TradingNameFull_List,MATCH(dms_TradingName,dms_TradingName_List)) -> Queensland Electricity Transmission Corporation Limited trading as Powerlink Queensland
B3: =CONCATENATE("Benchmarking RIN response ",CRY) -> Benchmarking RIN response 2016-17
B5: CONTENTS
B12: 3. ECONOMIC BENCHMARKING

Sheet Business & other details
B1: REGULATORY REPORTING STATEMENT
B2: =INDEX(dms_TradingNameFull_List,MATCH(dms_TradingName,dms_TradingName_List)) -> Queensland Electricity Transmission Corporation Limited trading as Powerlink Queensland
B3: =CONCATENATE("Economic Benchmarking RIN response ", CRY) -> Economic Benchmarking RIN response 2016-17
B4: BUSINESS & OTHER DETAILS
B7: Instructions
B8: Complete the following business details regulatory template before entering data or values in any other regulatory template. This regulatory template is linked to other cells within the spreadsheet and automatically generates column headings.
B10: SUBMISSION PARTICULARS INPUT SHEETS
B12: ENTITY DETAILS
B14: Short name | C14: Powerlink
B15: ACN / ABN | C15: =INDEX(dms_ABN_List,MATCH(dms_TradingName,dms_TradingName_List)) -> 82078849233
B18: Business address | C18: Address 1 | E18: =INDEX(dms_Addr1_List,MATCH(dms_TradingName,dms_TradingName_List)) -> 33 Harold St
D19: Address 2 | E19: =IF(ISBLANK(INDEX(dms_Addr2_List,MATCH(dms_TradingName,dms_TradingName_List))),"",INDEX(dms_Addr2_List,MATCH(dms_TradingName,dms_TradingName_List))) -> 
C20: Suburb | E20: =INDEX(dms_Suburb_List,MATCH(dms_TradingName,dms_TradingName_List)) -> VIRGINIA
D21: State | E21: =INDEX(dms_State_List,MATCH(dms_TradingName,dms_TradingName_List)) -> Qld | F21: p/code | G21: =INDEX(dms_PostCode_List,MATCH(dms_TradingName,dms_TradingName_List)) -> 4014
B23: Postal address | C23: Address 1 | E23: =INDEX(dms_PAddr1_List,MATCH(dms_TradingName,dms_TradingName_List)) -> PO Box 1193
D24: Address 2 | E24: =IF(ISBLANK(INDEX(dms_PAddr2_List,MATCH(dms_TradingName,dms_TradingName_List))),"",INDEX(dms_PAddr2_List,MATCH(dms_TradingName,dms_TradingName_List))) -> 
C25: Suburb | E25: =INDEX(dms_PSuburb_List,MATCH(dms_TradingName,dms_TradingName_List)) -> VIRGINIA
D26: State | E26: =INDEX(dms_PState_List,MATCH(dms_TradingName,dms_TradingName_List)) -> QLD | F26: p/code | G26: =INDEX(dms_PPostCode_List,MATCH(dms_TradingName,dms_TradingName_List)) -> 4014
B29: Contact name/s | C29: =INDEX(dms_ContactName1_List,MATCH(dms_TradingName,dms_TradingName_List)) -> Jennifer Harris
B30: Contact phone/s | C30: =INDEX(dms_ContactPh1_List,MATCH(dms_TradingName,dms_TradingName_List)) -> 07 3860 2667 | AA30: Tom Hallam
B31: Contact email address/s | C31: =INDEX(dms_ContactEmail_List,MATCH(dms_TradingName,dms_TradingName_List)) -> jharris@powerlink.com.au | AA31: Tom Hallam
B33: REGULATORY CONTROL PERIODS
B35: Forthcoming regulatory control period | C35: 2016-17 | D35: =dms_FRCP_y2 -> 2017-18 | E35: =dms_FRCP_y3 -> 2018-19 | F35: =dms_FRCP_y4 -> 2019-20 | G35: =dms_FRCP_y5 -> 2020-21 | H35: =dms_FRCP_y6 -> 2021-22 | I35: =IF(dms_RPT="financial",VALUE(LEFT(FRCP_y6,4)+1)&"-"&VALUE(MID(FRCP_y6,3,2)+2),VALUE(LEFT(FRCP_y6,4)+1)) -> 2022-23
B38: Current regulatory control period | C38: =dms_CRCP_FirstYear_Result -> 2011-12 | D38: =IF(dms_RPT="financial",VALUE(LEFT(CRCP_y1,4)+1)&"-"&TEXT(VALUE(RIGHT(CRCP_y1,2)+1),"0#"),VALUE(LEFT(CRCP_y1,4)+1)) -> 2012-13 | E38: =IF(dms_RPT="financial",VALUE(LEFT(CRCP_y2,4)+1)&"-"&TEXT(VALUE(RIGHT(CRCP_y2,2)+1),"0#"),VALUE(LEFT(CRCP_y2,4)+1)) -> 2013-14 | F38: =IF(dms_RPT="financial",VALUE(LEFT(CRCP_y3,4)+1)&"-"&TEXT(VALUE(RIGHT(CRCP_y3,2)+1),"0#"),VALUE(LEFT(CRCP_y3,4)+1)) -> 2014-15 | G38: =IF(dms_RPT="financial",VALUE(LEFT(CRCP_y4,4)+1)&"-"&TEXT(VALUE(RIGHT(CRCP_y4,2)+1),"0#"),VALUE(LEFT(CRCP_y4,4)+1)) -> 2015-16 | H38: =IF(dms_RPT="financial",VALUE(LEFT(CRCP_y5,4)+1)&"-"&TEXT(VALUE(RIGHT(CRCP_y5,2)+1),"0#"),VALUE(LEFT(CRCP_y5,4)+1)) -> 2016-17
B41: Previous regulatory control period | C41: =IF(dms_RPT="financial",VALUE(LEFT(PRCP_y2,4)-1)&"-"&TEXT(VALUE(MID(PRCP_y2,3,2)),"0#"),VALUE(LEFT(PRCP_y2,4)-1)) -> 2006-07 | D41: =IF(dms_RPT="financial",VALUE(LEFT(PRCP_y3,4)-1)&"-"&TEXT(VALUE(MID(PRCP_y3,3,2)),"0#"),VALUE(LEFT(PRCP_y3,4)-1)) -> 2007-08 | E41: =IF(dms_RPT="financial",VALUE(LEFT(PRCP_y4,4)-1)&"-"&TEXT(VALUE(MID(PRCP_y4,3,2)),"0#"),VALUE(LEFT(PRCP_y4,4)-1)) -> 2008-09 | F41: =IF(dms_RPT="financial",VALUE(LEFT(PRCP_y5,4)-1)&"-"&TEXT(VALUE(RIGHT(PRCP_y5,2)-1),"0#"),VALUE(LEFT(PRCP_y5,4)-1)) -> 2009-10 | G41: =IF(dms_RPT="financial",VALUE(LEFT(CRCP_y1,4)-1)&"-"&TEXT(VALUE(RIGHT(CRCP_y1,2)-1),"0#"),VALUE(LEFT(CRCP_y1,4)-1)) -> 2010-11
B44: Current regulatory year | C44: 2016-17 | D44: CRY
C47: DELETE NR 'CRY' IF NOT AN ANNUAL RIN (EB, CA , ARR)
C48: APPLY NR 'CRY' IF AN ANNUAL RIN (EB, CA , ARR)
B50: Source | C50: Reporting | E50: Please select the correct submission type from the dropdown list.
B51: Data quality (actual, estimate, public, consolidated) | C51: Consolidated
B52: Amended RIN submission - amendment reason
B53: Submission Date | C53: dd/mm/yyyy | D53: dms_SubmissionDate | E53: Please enter date this file submitted to AER (dd/mm/yyyy)
B54: EBSS - First application of scheme in forthcoming period? | C54: No
A55: HIDE THESE ROWS | B55: Sector | C55: =INDEX(dms_Sector_List,MATCH(dms_TradingName,dms_TradingName_List)) -> Electricity | D55: dms_Sector | E55: =INDEX(dms_Sector_List,MATCH(dms_TradingName,dms_TradingName_List))
B56: Segment | C56: =INDEX(dms_Segment_List,MATCH(dms_TradingName,dms_TradingName_List)) -> Transmission | D56: dms_Segment | E56: =INDEX(dms_Segment_List,MATCH(dms_TradingName,dms_TradingName_List))
B57: Regulatory Year Ending | C57: =IF(dms_MultiYear_Flag=1,LEFT(dms_Specified_FinalYear,2)&RIGHT(dms_Specified_FinalYear,2),INDEX(dms_RYE_Formula_Result,MATCH(dms_Model,dms_Model_List))) -> 2017 | D57: dms_RYE | E57: =IF(dms_MultiYear_Flag=1,LEFT(dms_Specified_FinalYear,2)&RIGHT(dms_Specified_FinalYear,2),INDEX(dms_RYE_Formula_Result,MATCH(dms_Model,dms_Model_List)))
B58: Reporting Period Type | C58: =INDEX(dms_RPT_List,MATCH(dms_TradingName,dms_TradingName_List)) -> Financial | D58: dms_RPT | E58: =INDEX(dms_RPT_List,MATCH(dms_TradingName,dms_TradingName_List))
B59: Model or RIN Type | C59: EB | D59: dms_Model | E59: Drop down selection
B60: Security Classification | C60: Public | D60: dms_Classification | E60: Always Public
B61: Template - version no. | C61: 5 | D61: dms_TemplateNumber
B62: Dollar $ real month | C62: =INDEX(dms_RPTMonth_List,MATCH(dms_TradingName,dms_TradingName_List)) -> June | D62: dms_RPTMonth | E62: =INDEX(dms_RPTMonth_List,MATCH(dms_TradingName,dms_TradingName_List))
B63: Dollar $ real (the last month before the FRCP_y1) | C63: =IF(SUM(dms_SingleYear_Model)>0,CONCATENATE(dms_RPTMonth)&" "&VALUE((LEFT(CRY,2))&RIGHT(CRY,2)),CONCATENATE(dms_RPTMonth)&" "&VALUE((LEFT(dms_CRCP_FinalYear_Result,2))&RIGHT(dms_CRCP_FinalYear_Result,2))) -> June 2017 | D63: dms_DollarReal | E63: =IF(SUM(dms_SingleYear_Model)>0,CONCATENATE(dms_RPTMonth)&" "&VALUE((LEFT(CRY,2))&RIGHT(CRY,2)),CONCATENATE(dms_RPTMonth)&" "&VALUE((LEFT(dms_CRCP_FinalYear_Result,2))&RIGHT(dms_CRCP_FinalYear_Result,2)))
B64: Form of control | C64: =INDEX(dms_FormControl_List,MATCH(dms_TradingName,dms_TradingName_List)) -> Revenue cap | D64: dms_FormControl | E64: =INDEX(dms_FormControl_List,MATCH(dms_TradingName,dms_TradingName_List))
B65: RIN response - version no. | C65: 1 | D65: dms_RINversion
B66: Jurisdiction | C66: =INDEX(dms_JurisdictionList,MATCH(dms_TradingName,dms_TradingName_List)) -> Qld | D66: dms_Jurisdiction | E66: =INDEX(dms_JurisdictionList,MATCH(dms_TradingName,dms_TradingName_List))
B67: Backcast Multiyear EB, CA or ARR? | C67: 0 | D67: dms_MultiYear_Flag | E67: 1=y, 0-n
C68: 2013 | D68: dms_Specified_FinalYear | E68: The result here is returned to dms_CRCP_FinalYear_Result if dms_MultiYear_Flag is set to 1
B69: Single Year Model T/F | C69: =IF(dms_Model="EB",1,0) -> 1 | D69: dms_EB
C70: =IF(dms_Model="CA",1,0) -> 0 | D70: dms_CA | E70: =dms_SingleYear_Model
C71: =IF(dms_Model="ARR",1,0) -> 0 | D71: dms_ARR
B72: Single Year Final Year Reference | C72: CRY | D72: dms_SingleYear_FinalYear_Ref | E72: This is the reference for EB, CA & ARR RINs
B73: Single Year Final Year Result | C73: =INDIRECT(dms_SingleYear_FinalYear_Ref) -> 2016-17 | D73: dms_SingleYear_FinalYear_Result | E73: =INDIRECT(dms_SingleYear_FinalYear_Ref) | I73: Formula errors OK
B74: FRCP length in years | C74: =INDEX(dms_FRCPlength_List,MATCH(dms_TradingName,dms_TradingName_List)) -> 5 | D74: dms_FRCPlength_Num | E74: =INDEX(dms_FRCPlength_List,MATCH(dms_TradingName,dms_TradingName_List))
B75: Multi Year Final Year Reference | C75: =INDEX(dms_FinalYear_List,MATCH(dms_FRCPlength_Num,dms_FRCPlength_Num_List)) -> dms_FRCP_y5 | D75: dms_MultiYear_FinalYear_Ref | E75: =INDEX(dms_FinalYear_List,MATCH(dms_FRCPlength_Num,dms_FRCPlength_Num_List))
B76: Multi Year Final Year Result | C76: =IF(dms_MultiYear_Flag=0,INDIRECT(dms_MultiYear_FinalYear_Ref),dms_Specified_FinalYear) -> 2020-21 | D76: dms_MultiYear_FinalYear_Result | E76: =IF(dms_MultiYear_Flag=0,INDIRECT(dms_MultiYear_FinalYear_Ref),dms_Specified_FinalYear) | I76: Formula errors OK
B77: CRCP length in years | C77: =INDEX(dms_CRCPlength_List,MATCH(dms_TradingName,dms_TradingName_List)) -> 5 | D77: dms_CRCPlength_Num | E77: =INDEX(dms_CRCPlength_List,MATCH(dms_TradingName,dms_TradingName_List))
B78: CRCP Final Year Reference | C78: =INDEX(dms_CFinalYear_List,MATCH(dms_CRCPlength_Num,dms_CRCPlength_Num_List)) -> CRCP_y5 | D78: dms_CRCP_FinalYear_Ref | E78: =INDEX(dms_CFinalYear_List,MATCH(dms_CRCPlength_Num,dms_CRCPlength_Num_List))
B79: CRCP First Year Result | C79: =INDEX(dms_CRCP_years,MATCH(dms_CRCPlength_Num,dms_CRCP_index)) -> 2011-12 | D79: dms_CRCP_FirstYear_Result | E79: =INDEX(dms_CRCP_years,MATCH(dms_CRCPlength_Num,dms_CRCP_index))
B80: CRCP Final Year Result | C80: =IF(dms_MultiYear_Flag=0,(IF(SUM(dms_SingleYear_Model)>0,CRY,dms_CRCP_yZ)),dms_Specified_FinalYear) -> 2016-17 | D80: dms_CRCP_FinalYear_Result | E80: =IF(dms_MultiYear_Flag=0,(IF(SUM(dms_SingleYear_Model)>0,CRY,dms_CRCP_yZ)),dms_Specified_FinalYear)
B81: Table 6.6.3 - Public lighting repair - no. business days | C81: =INDEX(dms_663_List,MATCH(dms_TradingName,dms_TradingName_List)) -> 5 | D81: dms_663
B82: Distribution Determination Reference | C82: =INDEX(dms_DeterminationRef_List,MATCH(dms_TradingName,dms_TradingName_List)) -> transmission determination
B83: Backcast templates only - unit of measure | C83: $0s | D83: dms_Backcast_UOM | E83: If the cover sheet is for Backcast data ensure to apply dms_Backcast_UOM named range to this field. Otherwise, do not apply this named range.
B84: EB/CA Unit of Measure for Monetary Values | C84: $0s | D84: dms_dollar_nom_UOM | E84: If the cover sheet is attached to an EB files make sure this field is set
B86: discard this record? | C86: NO | D86: dms_DISCARD | E86: If record is to be discarded from DB set this flag to YES
B88: USES NAMED RANGES FLAG | C88: yes | D88: dms_Defined_Names_Used

Sheet 3.1 Revenue
B1: =(LOOKUP(dms_Model,dms_Model_List,dms_Worksheet_List)) -> ECONOMIC BENCHMARKING
B2: =INDEX(dms_TradingNameFull_List,MATCH(dms_TradingName,dms_TradingName_List)) -> Queensland Electricity Transmission Corporation Limited trading as Powerlink Queensland
B3: =CONCATENATE("Benchmarking RIN response ", CRY) -> Benchmarking RIN response 2016-17
B4: 3.1 REVENUE
B7: 3.1.1 REVENUE GROUPING BY CHARGEABLE QUANTITY
C8: REVENUE ($0's)
C9: =CRY -> 2016-17
A10: TREV0101 | B10: From Fixed Customer (Exit Point) Charges | C10: 130894536.5
A11: TREV0102 | B11: From Variable Customer (Exit Point) Charges | C11: 0
A12: TREV0103 | B12: From Fixed Generator (Entry Point) Charges | C12: 8223420.991
A13: TREV0104 | B13: From Variable Generator (Entry Point) Charges | C13: 0
A14: TREV0105 | B14: From Fixed Energy Usage Charges (Charge per day basis) | C14: 218494095.3
A15: TREV0106 | B15: From Variable Energy Usage charges (Charge per kWh basis) | C15: 105996937
A16: TREV0107 | B16: From Energy based Common Service and General Charges | C16: 491825521.1
A17: TREV0108 | B17: From Fixed Demand based Usage Charges | C17: 86756410.18
A18: TREV0109 | B18: From Variable Demand based Usage Charges | C18: 11842158.85
A19: TREV0110 | B19: Revenue from other Sources | C19: -13059200.06
A20: TREV01 | B20: Total revenue by chargeable quantity | C20: =SUM(C10:C19) -> 1040973880
B23: 3.1.2 REVENUE GROUPING BY TYPE OF CONNECTED EQUIPMENT
C24: REVENUE ($0's)
C25: =CRY -> 2016-17
A26: TREV0201 | B26: From Other connected transmission networks | C26: 11203605.41
A27: TREV0202 | B27: From Distribution networks | C27: 856326729.3
A28: TREV0203 | B28: From Directly connected end–users | C28: 178279324.2
A29: TREV0204 | B29: From Generators | C29: 8223420.991
A30: TREV0205 | B30: Other revenue | C30: -13059200.06
A31: TREV02 | B31: Total revenue by type of connected equipment | C31: =SUM(C26:C30) -> 1040973880
F33: `
B34: 3.1.3 REVENUE (penalties) ALLOWED (deducted) THROUGH INCENTIVE SCHEMES
C35: REVENUE ($0's)
C36: =CRY -> 2016-17
A37: TREV0301 | B37: EBSS | C37: 0
A38: TREV0302 | B38: STPIS | C38: 20955607
A39: TREV0303 | B39: Other | C39: 0
A40: TREV03 | B40: Total revenue of incentive schemes | C40: =SUM(C37:C39) -> 20955607

Sheet 3.2 Operating expenditure
B1: REGULATORY REPORTING STATEMENT
B2: =INDEX(dms_TradingNameFull_List,MATCH(dms_TradingName,dms_TradingName_List)) -> Queensland Electricity Transmission Corporation Limited trading as Powerlink Queensland
B3: =CONCATENATE("Benchmarking RIN response ",CRY) -> Benchmarking RIN response 2016-17
B4: 3.2 OPERATING EXPENDITURE
B7: Instructions
B8: =CONCATENATE("In table 3.2.1, please list each opex category reported in response to ",dms_TradingName, "'s annual reporting RIN and report opex for each category.") -> In table 3.2.1, please list each opex category reported in response to Powerlink's annual reporting RIN and report opex for each category.
B11: 3.2.1 - OPEX CATEGORIES
B12: CURRENT OPEX CATEGORIES AND COST ALLOCATIONS
C13: EXPENDITURE ($0's)
C14: =CRY -> 2016-17
A15: TOPEX0101 | B15: Field Maintenance - Routine | C15: 13770000
A16: TOPEX0102 | B16: Field Maintenance - Condition-based | C16: 44767000
A17: TOPEX0103 | B17: Field Maintenance - Corrective | C17: 18264000
A18: TOPEX0104 | B18: Maintenance Support | C18: 12704000
A19: TOPEX0105 | B19: Refurbishment | C19: 33335000
A20: TOPEX0106 | B20: Insurance Premiums | C20: 6327000
A21: TOPEX0107 | B21: Self Insurance | C21: 1722000
A22: TOPEX0108 | B22: Network Operations | C22: 14269000
A23: TOPEX0109 | B23: Asset Management Support | C23: 34705000
A24: TOPEX0110 | B24: Corporate Support | C24: 31062000
A25: TOPEX0111 | B25: AEMC Levy | C25: 4204710
A26: TOPEX0112 | B26: Project - write-off | C26: 3971859
A27: TOPEX0113 | B27: Revenue Reset | C27: 747514
A28: TOPEX0114 | B28: Debt Management Costs | C28: 583000
A29: TOPEX0115 | B29: Grid Support | C29: 1770000
A30: TOPEX0116 | B30: Net Loss on Disposal of Property, Plant & Equip | C30: 4059066
A31: TOPEX0117
A32: TOPEX0118
A33: TOPEX0119
A34: TOPEX0120
A35: TOPEX0121
A36: TOPEX0122
A37: TOPEX0123
A38: TOPEX0124
A39: TOPEX0125
A40: TOPEX0126
A41: TOPEX0127
A42: TOPEX0128
A43: TOPEX0129
A44: TOPEX0130
A45: TOPEX0131
A46: TOPEX0132
A47: TOPEX0133
A48: TOPEX0134
A49: TOPEX0135
A50: TOPEX0136
A51: TOPEX0137
A52: TOPEX0138
A53: TOPEX0139
A54: TOPEX0140
A55: TOPEX0141
A56: TOPEX01 | B56: Total opex | C56: =SUM(C15:C55) -> 226261149

Sheet 3.2.3 Provisions
B1: REGULATORY REPORTING STATEMENT
B2: =INDEX(dms_TradingNameFull_List,MATCH(dms_TradingName,dms_TradingName_List)) -> Queensland Electricity Transmission Corporation Limited trading as Powerlink Queensland
B3: =CONCATENATE("Benchmarking RIN response ",CRY) -> Benchmarking RIN response 2016-17
B4: 3.2 OPERATING EXPENDITURE
B6: The is ONE table on this worksheet. Each Provision has been grouped for ease of navigation. See the Instructions sheet on how to group and ungroup tables.
B8: 3.2.3 - PROVISIONS
D9: $0's
D10: =CRY -> 2016-17
A11: TOPEX03A | B11: Employee Entitlements
B12: Employee Annual and Long Service leave Liability
A13: TOPEX0301A | B13: Opening balance (the carrying amount at the beginning of the period) | D13: 34611714.13
B14: Additional provisions made in the period, including increases to existing provisions
A15: TOPEX0302A | B15: Opex component | D15: 8318759.196
A16: TOPEX0303A | B16: Capex component | D16: 5801394.106
A17: TOPEX0304A | B17: Other component | D17: 0
B18: Amounts used (that is, incurred and charged against the provision) during the period
A19: TOPEX0305A | B19: Opex component | D19: -9353325.198
A20: TOPEX0306A | B20: Capex component | D20: -6522886.935
A21: TOPEX0307A | B21: Other component | D21: 0
B22: Unused amounts reversed during the period
A23: TOPEX0308A | B23: Opex component | D23: 0
A24: TOPEX0309A | B24: Capex component | D24: 0
A25: TOPEX0310A | B25: Other component | D25: 0
B26: The increase during the period in the discounted amount arising from the passage of time and the effect of any change in the discount rate
A27: TOPEX0311A | B27: Opex component | D27: -245081.7334
A28: TOPEX0312A | B28: Capex component | D28: -170916.8026
A29: TOPEX0313A | B29: Other component | D29: 0
A30: TOPEX0314A | B30: Closing balance (carrying amount at the end of the period) | D30: 32439656.76
A31: TOPEX03B | B31: Other Provisions
B32: Other Provisions
A33: TOPEX0301B | B33: Opening balance (the carrying amount at the beginning of the period) | D33: 2955664.69
B34: Additional provisions made in the period, including increases to existing provisions
A35: TOPEX0302B | B35: Opex component | D35: 4252668
A36: TOPEX0303B | B36: Capex component | D36: 0
A37: TOPEX0304B | B37: Other component | D37: 0
B38: Amounts used (that is, incurred and charged against the provision) during the period
A39: TOPEX0305B | B39: Opex component | D39: -2567198.83
A40: TOPEX0306B | B40: Capex component | D40: 0
A41: TOPEX0307B | B41: Other component | D41: 0
B42: Unused amounts reversed during the period
A43: TOPEX0308B | B43: Opex component | D43: 0
A44: TOPEX0309B | B44: Capex component | D44: 0
A45: TOPEX0310B | B45: Other component | D45: 0
B46: The increase during the period in the discounted amount arising from the passage of time and the effect of any change in the discount rate
A47: TOPEX0311B | B47: Opex component | D47: 0
A48: TOPEX0312B | B48: Capex component | D48: 0
A49: TOPEX0313B | B49: Other component | D49: 0
A50: TOPEX0314B | B50: Closing balance (carrying amount at the end of the period) | D50: 4641133.86
A51: TOPEX03C | B51: Dividends
B52: Provision for Dividends declared by the Board of Directors
A53: TOPEX0301C | B53: Opening balance (the carrying amount at the beginning of the period) | D53: 190702323.2
B54: Additional provisions made in the period, including increases to existing provisions
A55: TOPEX0302C | B55: Opex component | D55: 315507078.7
A56: TOPEX0303C | B56: Capex component | D56: 0
A57: TOPEX0304C | B57: Other component | D57: 0
B58: Amounts used (that is, incurred and charged against the provision) during the period
A59: TOPEX0305C | B59: Opex component | D59: -330474983.4
A60: TOPEX0306C | B60: Capex component | D60: 0
A61: TOPEX0307C | B61: Other component | D61: 0
B62: Unused amounts reversed during the period
A63: TOPEX0308C | B63: Opex component | D63: 0
A64: TOPEX0309C | B64: Capex component | D64: 0
A65: TOPEX0310C | B65: Other component | D65: 0
B66: The increase during the period in the discounted amount arising from the passage of time and the effect of any change in the discount rate
A67: TOPEX0311C | B67: Opex component | D67: 0
A68: TOPEX0312C | B68: Capex component | D68: 0
A69: TOPEX0313C | B69: Other component | D69: 0
A70: TOPEX0314C | B70: Closing balance (carrying amount at the end of the period) | D70: 175734418.5
A71: TOPEX03D | B71: Provision name
B72: Brief description of provision
A73: TOPEX0301D | B73: Opening balance (the carrying amount at the beginning of the period)
B74: Additional provisions made in the period, including increases to existing provisions
A75: TOPEX0302D | B75: Opex component
A76: TOPEX0303D | B76: Capex component
A77: TOPEX0304D | B77: Other component
B78: Amounts used (that is, incurred and charged against the provision) during the period
A79: TOPEX0305D | B79: Opex component
A80: TOPEX0306D | B80: Capex component
A81: TOPEX0307D | B81: Other component
B82: Unused amounts reversed during the period
A83: TOPEX0308D | B83: Opex component
A84: TOPEX0309D | B84: Capex component
A85: TOPEX0310D | B85: Other component
B86: The increase during the period in the discounted amount arising from the passage of time and the effect of any change in the discount rate
A87: TOPEX0311D | B87: Opex component
A88: TOPEX0312D | B88: Capex component
A89: TOPEX0313D | B89: Other component
A90: TOPEX0314D | B90: Closing balance (carrying amount at the end of the period)
A91: TOPEX03E | B91: Provision name
B92: Brief description of provision
A93: TOPEX0301E | B93: Opening balance (the carrying amount at the beginning of the period)
B94: Additional provisions made in the period, including increases to existing provisions
A95: TOPEX0302E | B95: Opex component
A96: TOPEX0303E | B96: Capex component
A97: TOPEX0304E | B97: Other component
B98: Amounts used (that is, incurred and charged against the provision) during the period
A99: TOPEX0305E | B99: Opex component
A100: TOPEX0306E | B100: Capex component
A101: TOPEX0307E | B101: Other component
B102: Unused amounts reversed during the period
A103: TOPEX0308E | B103: Opex component
A104: TOPEX0309E | B104: Capex component
A105: TOPEX0310E | B105: Other component
B106: The increase during the period in the discounted amount arising from the passage of time and the effect of any change in the discount rate
A107: TOPEX0311E | B107: Opex component
A108: TOPEX0312E | B108: Capex component
A109: TOPEX0313E | B109: Other component
A110: TOPEX0314E | B110: Closing balance (carrying amount at the end of the period)
A111: TOPEX03F | B111: Provision name
B112: Brief description of provision
A113: TOPEX0301F | B113: Opening balance (the carrying amount at the beginning of the period)
B114: Additional provisions made in the period, including increases to existing provisions
A115: TOPEX0302F | B115: Opex component
A116: TOPEX0303F | B116: Capex component
A117: TOPEX0304F | B117: Other component
B118: Amounts used (that is, incurred and charged against the provision) during the period
A119: TOPEX0305F | B119: Opex component
A120: TOPEX0306F | B120: Capex component
A121: TOPEX0307F | B121: Other component
B122: Unused amounts reversed during the period
A123: TOPEX0308F | B123: Opex component
A124: TOPEX0309F | B124: Capex component
A125: TOPEX0310F | B125: Other component
B126: The increase during the period in the discounted amount arising from the passage of time and the effect of any change in the discount rate
A127: TOPEX0311F | B127: Opex component
A128: TOPEX0312F | B128: Capex component
A129: TOPEX0313F | B129: Other component
A130: TOPEX0314F | B130: Closing balance (carrying amount at the end of the period)
A131: TOPEX03G | B131: Provision name
B132: Brief description of provision
A133: TOPEX0301G | B133: Opening balance (the carrying amount at the beginning of the period)
B134: Additional provisions made in the period, including increases to existing provisions
A135: TOPEX0302G | B135: Opex component
A136: TOPEX0303G | B136: Capex component
A137: TOPEX0304G | B137: Other component
B138: Amounts used (that is, incurred and charged against the provision) during the period
A139: TOPEX0305G | B139: Opex component
A140: TOPEX0306G | B140: Capex component
A141: TOPEX0307G | B141: Other component
B142: Unused amounts reversed during the period
A143: TOPEX0308G | B143: Opex component
A144: TOPEX0309G | B144: Capex component
A145: TOPEX0310G | B145: Other component
B146: The increase during the period in the discounted amount arising from the passage of time and the effect of any change in the discount rate
A147: TOPEX0311G | B147: Opex component
A148: TOPEX0312G | B148: Capex component
A149: TOPEX0313G | B149: Other component
A150: TOPEX0314G | B150: Closing balance (carrying amount at the end of the period)
A151: TOPEX03H | B151: Provision name
B152: Brief description of provision
A153: TOPEX0301H | B153: Opening balance (the carrying amount at the beginning of the period)
B154: Additional provisions made in the period, including increases to existing provisions
A155: TOPEX0302H | B155: Opex component
A156: TOPEX0303H | B156: Capex component
A157: TOPEX0304H | B157: Other component
B158: Amounts used (that is, incurred and charged against the provision) during the period
A159: TOPEX0305H | B159: Opex component
A160: TOPEX0306H | B160: Capex component
A161: TOPEX0307H | B161: Other component
B162: Unused amounts reversed during the period
A163: TOPEX0308H | B163: Opex component
A164: TOPEX0309H | B164: Capex component
A165: TOPEX0310H | B165: Other component
B166: The increase during the period in the discounted amount arising from the passage of time and the effect of any change in the discount rate
A167: TOPEX0311H | B167: Opex component
A168: TOPEX0312H | B168: Capex component
A169: TOPEX0313H | B169: Other component
A170: TOPEX0314H | B170: Closing balance (carrying amount at the end of the period)
A171: TOPEX03I | B171: Provision name
B172: Brief description of provision
A173: TOPEX0301I | B173: Opening balance (the carrying amount at the beginning of the period)
B174: Additional provisions made in the period, including increases to existing provisions
A175: TOPEX0302I | B175: Opex component
A176: TOPEX0303I | B176: Capex component
A177: TOPEX0304I | B177: Other component
B178: Amounts used (that is, incurred and charged against the provision) during the period
A179: TOPEX0305I | B179: Opex component
A180: TOPEX0306I | B180: Capex component
A181: TOPEX0307I | B181: Other component
B182: Unused amounts reversed during the period
A183: TOPEX0308I | B183: Opex component
A184: TOPEX0309I | B184: Capex component
A185: TOPEX0310I | B185: Other component
B186: The increase during the period in the discounted amount arising from the passage of time and the effect of any change in the discount rate
A187: TOPEX0311I | B187: Opex component
A188: TOPEX0312I | B188: Capex component
A189: TOPEX0313I | B189: Other component
A190: TOPEX0314I | B190: Closing balance (carrying amount at the end of the period)
A191: TOPEX03J | B191: Provision name
B192: Brief description of provision
A193: TOPEX0301J | B193: Opening balance (the carrying amount at the beginning of the period)
B194: Additional provisions made in the period, including increases to existing provisions
A195: TOPEX0302J | B195: Opex component
A196: TOPEX0303J | B196: Capex component
A197: TOPEX0304J | B197: Other component
B198: Amounts used (that is, incurred and charged against the provision) during the period
A199: TOPEX0305J | B199: Opex component
A200: TOPEX0306J | B200: Capex component
A201: TOPEX0307J | B201: Other component
B202: Unused amounts reversed during the period
... 168 more rows

Sheet 3.3 Assets (RAB)
B1: REGULATORY REPORTING STATEMENT
B2: =INDEX(dms_TradingNameFull_List,MATCH(dms_TradingName,dms_TradingName_List)) -> Queensland Electricity Transmission Corporation Limited trading as Powerlink Queensland
B3: =CONCATENATE("Benchmarking RIN response ",CRY) -> Benchmarking RIN response 2016-17
B4: 3.3 ASSETS
B6: There are FOUR tables on this worksheet. Each table has been grouped (and sub-grouped) for ease of navigation. See the Instructions sheet on how to group or ungroup tables.
B8: 3.3.1 - REGULATORY ASSET BASE VALUES
C9: ($0's)
C10: =CRY -> 2016-17
B11: For total asset base:
A12: TRAB0101 | B12: Opening value | C12: 6628181740
A13: TRAB0102 | B13: Inflation addition | C13: 140894805.9
A14: TRAB0103 | B14: Straight line depreciation | C14: -273813570.3
A15: TRAB0105 | B15: Actual additions (recognised in RAB) | C15: 165717786.8
A16: TRAB0106 | B16: Disposals | C16: -1040688.34
A17: TRAB0107 | B17: Closing value | C17: =SUM(C12+C13+C14+C15+C16) -> 6659940074
B19: 3.3.2 - ASSET VALUE ROLL FORWARD
C20: ($0's)
C21: =CRY -> 2016-17
B22: For overhead transmission assets:
A23: TRAB0201 | B23: Opening value | C23: 3333172160
A24: TRAB0202 | B24: Inflation addition | C24: 70853012.65
A25: TRAB0203 | B25: Straight line depreciation | C25: -113878088.3
A26: TRAB0205 | B26: Actual additions (recognised in RAB) | C26: 17345525.68
A27: TRAB0206 | B27: Disposals | C27: 0
A28: TRAB0207 | B28: Closing value | C28: =SUM(C23+C24+C25+C26+C27) -> 3307492610
B29: For underground transmission assets:
A30: TRAB0301 | B30: Opening value | C30: 45651180.29
A31: TRAB0302 | B31: Inflation addition | C31: 970404.0172
A32: TRAB0303 | B32: Straight line depreciation | C32: -2223379.158
A33: TRAB0305 | B33: Actual additions (recognised in RAB) | C33: 0
A34: TRAB0306 | B34: Disposals | C34: 0
A35: TRAB0307 | B35: Closing value | C35: =SUM(C30+C31+C32+C33+C34) -> 44398205.15
B36: For transmission switchyards, substations
A37: TRAB0401 | B37: Opening value | C37: 2495527842
A38: TRAB0402 | B38: Inflation addition | C38: 52938503.11
A39: TRAB0403 | B39: Straight line depreciation | C39: -122672587.8
A40: TRAB0405 | B40: Actual additions (recognised in RAB) | C40: 104089411.4
A41: TRAB0406 | B41: Disposals | C41: -415908.5838
A42: TRAB0407 | B42: Closing value | C42: =SUM(C37+C38+C39+C40+C41) -> 2529467260
B43: For easements:
A44: TRAB0501 | B44: Opening value | C44: 450457696.1
A45: TRAB0502 | B45: Inflation addition | C45: 9738053.179
A46: TRAB0503 | B46: Straight line depreciation | C46: 0
A47: TRAB0505 | B47: Actual additions (recognised in RAB) | C47: 10979314.95
A48: TRAB0506 | B48: Disposals | C48: 0
A49: TRAB0507 | B49: Closing value | C49: =SUM(C44+C45+C46+C47+C48) -> 471175064.3
B50: For “other” assets with long lives:
A51: TRAB0601 | B51: Opening value | C51: 251355023.3
A52: TRAB0602 | B52: Inflation addition | C52: 5289093.353
A53: TRAB0603 | B53: Straight line depreciation | C53: -14895436.93
A54: TRAB0605 | B54: Actual additions (recognised in RAB) | C54: 12293166.88
A55: TRAB0606 | B55: Disposals | C55: 0
A56: TRAB0607 | B56: Closing value | C56: =SUM(C51+C52+C53+C54+C55) -> 254041846.7
B57: For “other” assets with short lives:
A58: TRAB0701 | B58: Opening value | C58: 52017837.67
A59: TRAB0702 | B59: Inflation addition | C59: 1105739.618
A60: TRAB0703 | B60: Straight line depreciation | C60: -20144078.03
A61: TRAB0705 | B61: Actual additions (recognised in RAB) | C61: 21010367.9
A62: TRAB0706 | B62: Disposals | C62: -624779.7566
A63: TRAB0707 | B63: Closing value | C63: =SUM(C58+C59+C60+C61+C62) -> 53365087.4
B66: 3.3.3 - TOTAL DISAGGREGATED RAB ASSET VALUES
C67: ($0's)
C68: =CRY -> 2016-17
A69: TRAB0801 | B69: Overhead transmission assets (wires and towers/poles etc) | C69: 3320332385
A70: TRAB0802 | B70: Underground transmission assets (cables, ducts etc) | C70: 45024692.72
A71: TRAB0803 | B71: Substations, switchyards, Transformers etc with transmission function | C71: 2512497551
A72: TRAB0804 | B72: Easements | C72: 460816380.2
A73: TRAB0805 | B73: "Other" assets with long lives | C73: 252698435
A74: TRAB0806 | B74: "Other" assets with short lives | C74: 52691462.54
B76: 3.3.4 - ASSET LIVES
C77: Service Life (Years)
C78: =CRY -> 2016-17
B79: Asset Lives – estimated service life of new assets
A80: TRAB0901 | B80: Overhead transmission assets | C80: 49.61881176
A81: TRAB0902 | B81: Underground transmission assets | C81: 45
A82: TRAB0903 | B82: Switchyard, substation and transformer assets | C82: 34.66571161
A83: TRAB0904 | B83: “Other” assets with long lives | C83: 26.61142405
A84: TRAB0905 | B84: “Other assets with short lives | C84: 5.613665315
B85: Asset Lives – estimated residual service life
A86: TRAB1001 | B86: Overhead transmission assets | C86: 21.53865289
A87: TRAB1002 | B87: Underground transmission assets | C87: 24.32733149
A88: TRAB1003 | B88: Switchyard, substation and transformer assets | C88: 20.85268505
A89: TRAB1004 | B89: “Other” assets with long lives | C89: 20.37914857
A90: TRAB1005 | B90: “Other assets with short lives | C90: 2.956897026

Sheet 3.4 Operational data
B1: REGULATORY REPORTING STATEMENT
B2: =INDEX(dms_TradingNameFull_List,MATCH(dms_TradingName,dms_TradingName_List)) -> Queensland Electricity Transmission Corporation Limited trading as Powerlink Queensland
B3: =CONCATENATE("Benchmarking RIN response ",CRY) -> Benchmarking RIN response 2016-17
B4: 3.4 OPERATIONAL DATA
B6: There are THREE tables on this worksheet. Each table has been grouped for ease of navigation. See the Instructions sheet on how to group or ungroup tables.
B8: 3.4.1 - ENERGY DELIVERY
D9: VOLUMES (0's)
C10: Units | D10: =CRY -> 2016-17
B11: Energy Grouping by Downstream Connection type
A12: TOPED0101 | B12: To Other connected transmission networks | C12: GWh | D12: 4129.598282
A13: TOPED0102 | B13: To Distribution networks | C13: GWh | D13: 33306.21833
A14: TOPED0103 | B14: To Directly connected end–users (330 kV) | C14: GWh | D14: 0
A15: TOPED0104 | B15: To Directly connected end–users (275 kV) | C15: GWh | D15: 8142.43248
A16: TOPED0105 | B16: To Directly connected end–users (220 kV) | C16: GWh | D16: 0
A17: TOPED0106 | B17: To Directly connected end–users (132 kV) | C17: GWh | D17: 8425.966553
A18: TOPED0107 | B18: To Directly connected end–users (110 kV) | C18: GWh | D18: 0
A19: TOPED0108 | B19: To Directly connected end–users (44 kV) | C19: GWh | D19: 0
A20: TOPED0109 | B20: To Directly connected end–users (33 kV) | C20: GWh | D20: 0
A21: TOPED0110 | B21: To Directly connected end–users (22 kV) | C21: GWh | D21: 0
A22: TOPED0111 | B22: To Directly connected end–users (11 kV) | C22: GWh | D22: 0
A23: TOPED0112 | B23: To Directly connected end–users (6.6 kV) | C23: GWh | D23: 0
A24: TOPED0113 | B24: Pumping and Power Station Auxillaries | C24: GWh | D24: 249.0843815
A25: TOPED01 | B25: Total energy transported | D25: =SUM(D12:D24) -> 54253.30002
B28: 3.4.2 - CONNECTION POINTS
D29: VOLUMES (0's)
D30: =CRY -> 2016-17
B31: Number of entry points at each transmission voltage level
A32: TOPCP0101 | B32: 500kV | D32: 0
A33: TOPCP0102 | B33: 330kV | D33: 1
A34: TOPCP0103 | B34: 275kV | D34: 12
A35: TOPCP0104 | B35: 220kV | D35: 0
A36: TOPCP0105 | B36: 132 kV | D36: 9
A37: TOPCP0106 | B37: 110kV | D37: 1
A38: TOPCP0107 | B38: 66 kV | D38: 0
A39: TOPCP0108 | B39: 33 kV | D39: 0
A40: TOPCP0109 | B40: 22 kV | D40: 0
A41: TOPCP0110 | B41: 11 kV | D41: 0
A42: TOPCP0111 | B42: 6.6 kV | D42: 0
B44: Number of exit points at each transmission voltage level
A45: TOPCP0201 | B45: 500kV | D45: 0
A46: TOPCP0202 | B46: 330kV | D46: 1
A47: TOPCP0203 | B47: 275kV | D47: 5
A48: TOPCP0204 | B48: 220kV | D48: 0
A49: TOPCP0205 | B49: 132 kV | D49: 51.5
A50: TOPCP0206 | B50: 110kV | D50: 17
A51: TOPCP0207 | B51: 66 kV | D51: 23
A52: TOPCP0208 | B52: 44 kV | D52: 0
A53: TOPCP0209 | B53: 33kV | D53: 14
A54: TOPCP0210 | B54: 22kV | D54: 7
A55: TOPCP0211 | B55: 11kV | D55: 4
A56: TOPCP0212 | B56: 6.6kV | D56: 0
B60: 3.4.3 - SYSTEM DEMAND
D61: VOLUMES (0's)
C62: Units | D62: =CRY -> 2016-17
B63: 3.4.3.1 - Annual system maximum demand characteristics – MW measure
A64: TOPSD0101 | B64: Transmission System coincident maximum demand | C64: MW | D64: 8547.985832
A65: TOPSD0102 | B65: Transmission System coincident weather adjusted maximum demand 10% POE | C65: MW | D65: 8993.902565
A66: TOPSD0103 | B66: Transmission System coincident weather adjusted maximum demand 50% POE | C66: MW | D66: 8459.858897
A67: TOPSD0104 | B67: Transmission System non-coincident summated maximum demand | C67: MW | D67: 11973.52392
A68: TOPSD0105 | B68: Transmission System non-coincident weather adjusted summated maximum demand 10% POE | C68: MW | D68: 12668.03633
A69: TOPSD0106 | B69: Transmission System non-coincident weather adjusted summated maximum demand 50% POE | C69: MW | D69: 11779.63128
B71: 3.4.3.2 - Annual system maximum demand characteristics – MVA measure
A72: TOPSD0201 | B72: Transmission System coincident maximum demand | C72: MVA | D72: 9125.075506
A73: TOPSD0202 | B73: Transmission System coincident weather adjusted maximum demand 10% POE | C73: MVA | D73: 9584.847129
A74: TOPSD0203 | B74: Transmission System coincident weather adjusted maximum demand 50% POE | C74: MVA | D74: 9034.210416
A75: TOPSD0204 | B75: Transmission System non-coincident summated maximum demand | C75: MVA | D75: 12388.95276
A76: TOPSD0205 | B76: Transmission System non-coincident weather adjusted summated maximum demand 10% POE | C76: MVA | D76: 13107.34632
A77: TOPSD0206 | B77: Transmission System non-coincident weather adjusted summated maximum demand 50% POE | C77: MVA | D77: 12192.78221
B79: 3.4.3.3 - Power factor
B80: Power factor conversion between MVA and MW
A81: TOPSD0301 | B81: Average overall network power factor conversion between MVA and MW | C81: Factor | D81: 0.995752
A82: TOPSD0302 | B82: Average power factor conversion for 500 kV lines | C82: Factor | D82: 0
A83: TOPSD0303 | B83: Average power factor conversion for 330 kV lines | C83: Factor | D83: 0.897702
A84: TOPSD0304 | B84: Average power factor conversion for 275 kV lines | C84: Factor | D84: 0.973296
A85: TOPSD0305 | B85: Average power factor conversion for 220 kV lines | C85: Factor | D85: 0
A86: TOPSD0306 | B86: Average power factor conversion for 132 kV lines | C86: Factor | D86: 0.99889
A87: TOPSD0307 | B87: Average power factor conversion for 110 kV lines | C87: Factor | D87: 0.994137
A88: TOPSD0308 | B88: Average power factor conversion for 88 kV lines | C88: Factor | D88: 0
A89: TOPSD0309 | B89: Average power factor conversion for 66 kV lines | C89: Factor | D89: 0.98087
A90: TOPSD0310 | B90: Average power factor conversion for 33 kV lines | C90: Factor | D90: 0.999966
A91: TOPSD0311 | B91: Average power factor conversion for 22 kV lines | C91: Factor | D91: 0.998177
A92: TOPSD0311 | B92: Average power factor conversion for 11 kV lines | C92: Factor | D92: 0.977246
A93: TOPSD0312 | B93: Average power factor conversion for 6.6 kV lines | C93: Factor | D93: 0

Sheet 3.5 Physical assets
B1: REGULATORY REPORTING STATEMENT
B2: =INDEX(dms_TradingNameFull_List,MATCH(dms_TradingName,dms_TradingName_List)) -> Queensland Electricity Transmission Corporation Limited trading as Powerlink Queensland
B3: =CONCATENATE("Benchmarking RIN response ",CRY) -> Benchmarking RIN response 2016-17
B4: 3.5 PHYSICAL ASSETS
B6: There is ONE table on this worksheet. It has been sub-grouped for ease of navigation. See the Instructions sheet on how to group or ungroup tables.
B8: 3.5.1 - TRANSMISSION SYSTEM CAPACITIES
D9: (0's)
C10: Unit | D10: =CRY -> 2016-17
B11: 3.5.1.1 - Overhead network length of circuit at each voltage
A12: TPA0101 | B12: 500 kV | C12: km | D12: 0
A13: TPA0102 | B13: 330 kV | C13: km | D13: 602
A14: TPA0103 | B14: 275 kV | C14: km | D14: 9368
A15: TPA0104 | B15: 220 kV | C15: km | D15: 0
A16: TPA0105 | B16: 132 kV | C16: km | D16: 4146
A17: TPA0106 | B17: 110 kV | C17: km | D17: 394
A18: TPA0107 | B18: 88 kV | C18: km | D18: 0
A19: TPA0108 | B19: 66 kV | C19: km | D19: 1
A20: TPA0109 | B20: 33 kV | C20: km | D20: 0
A21: TPA0109 | B21: 22 kV | C21: km | D21: 0
A22: TPA0109 | B22: 11 kV | C22: km | D22: 0
A23: TPA01 | B23: Total overhead circuit kilometres | D23: =SUM(D12:D22) -> 14511
B25: 3.5.1.2 - Underground cable circuit length at each voltage
A26: TPA0201 | B26: 500 kV | C26: km | D26: 0
A27: TPA0202 | B27: 330 kV | C27: km | D27: 0
A28: TPA0203 | B28: 275 kV | C28: km | D28: 9.4
A29: TPA0204 | B29: 220 kV | C29: km | D29: 0
A30: TPA0205 | B30: 132 kV | C30: km | D30: 3.2
A31: TPA0206 | B31: 110 kV | C31: km | D31: 7.6
A32: TPA0207 | B32: 88 kV | C32: km | D32: 0
A33: TPA0208 | B33: 66 kV | C33: km | D33: 1.3
A34: TPA0209 | B34: 33 kV | C34: km | D34: 0
A35: TPA0210 | B35: 22 kV | C35: km | D35: 0
A36: TPA0211 | B36: 11 kV | C36: km | D36: 0
A37: TPA02 | B37: Total underground circuit kilometres | D37: =SUM(D26:D36) -> 21.5
B39: 3.5.1.3 - Estimated overhead network weighted average MVA capacity by voltage class
A40: TPA0301 | B40: 500 kV | C40: MVA | D40: 0
A41: TPA0302 | B41: 330 kV | C41: MVA | D41: 1236.2
A42: TPA0303 | B42: 275 kV | C42: MVA | D42: 814
A43: TPA0304 | B43: 220 kV | C43: MVA | D43: 0
A44: TPA0305 | B44: 132 kV | C44: MVA | D44: 145.2
A45: TPA0306 | B45: 110 kV | C45: MVA | D45: 168.9
A46: TPA0307 | B46: 88 kV | C46: MVA | D46: 0
A47: TPA0308 | B47: 66 kV | C47: MVA | D47: 57
A48: TPA0309 | B48: 33 kV | C48: MVA | D48: 0
A49: TPA0310 | B49: 22 kV | C49: MVA | D49: 0
A50: TPA0311 | B50: 11 kV | C50: MVA | D50: 0
B52: 3.5.1.4 - Estimated underground network weighted average MVA capacity by voltage class
A53: TPA0401 | B53: 500 kV | C53: MVA | D53: 0
A54: TPA0402 | B54: 330 kV | C54: MVA | D54: 0
A55: TPA0403 | B55: 275 kV | C55: MVA | D55: 568.9
A56: TPA0404 | B56: 220 kV | C56: MVA | D56: 0
A57: TPA0405 | B57: 132 kV | C57: MVA | D57: 207.9
A58: TPA0406 | B58: 110 kV | C58: MVA | D58: 200.8
A59: TPA0407 | B59: 88 kV | C59: MVA | D59: 0
A60: TPA0408 | B60: 66 kV | C60: MVA | D60: 57
A61: TPA0409 | B61: 33 kV | C61: MVA | D61: 0
A62: TPA0410 | B62: 22 kV | C62: MVA | D62: 0
A63: TPA0411 | B63: 11 kV | C63: MVA | D63: 0
B65: 3.5.1.5 - Installed transmission system transformer capacity
A66: TPA0501 | B66: Transmission substations (eg 500 kV to 330 kV) | C66: MVA | D66: 11029
A67: TPA0502 | B67: Terminal points to DNSP systems | C67: MVA | D67: 24447
A68: TPA0503 | B68: Transformer capacity for directly connected end–users owned by the TNSP | C68: MVA | D68: 1987
A69: TPA0504 | B69: Transformer capacity for directly connected end–users owned by the end–user | C69: MVA | D69: 4103
A70: TPA0505 | B70: Interconnector capacity | C70: MVA | D70: 0
A71: TPA0506 | B71: Other | C71: MVA | D71: 3197
B73: 3.5.1.6 - Cold spare capacity
A74: TPA06 | B74: Cold spare capacity included in Table 3.5.1.5 | C74: MVA | D74: 3220

Sheet 3.6 Quality of services
B1: REGULATORY REPORTING STATEMENT
B2: =INDEX(dms_TradingNameFull_List,MATCH(dms_TradingName,dms_TradingName_List)) -> Queensland Electricity Transmission Corporation Limited trading as Powerlink Queensland
B3: =CONCATENATE("Benchmarking RIN response ",CRY) -> Benchmarking RIN response 2016-17
B4: 3.6 QUALITY OF SERVICE DATA
B6: There are THREE tables on this worksheet. Each table has been grouped (and sub-grouped) for ease of navigation. See the Instructions sheet on how to group or ungroup tables.
B8: 3.6.1 - SERVICE COMPONENT
D9: VOLUME
C10: Units | D10: =CONCATENATE("Calendar Year ",(LEFT(dms_RYE,2)&RIGHT(dms_RYE,2)-1)) -> Calendar Year 2016
B11: Service Parameter 1 – Average circuit outage rate
A12: TQS0101 | B12: Lines outage rate - fault | C12: % | D12: 0.1621621622
A13: TQS0102 | B13: Number of Lines fault outages | C13: number | D13: 48
A14: TQS0103 | B14: Number of defined Lines | C14: number | D14: 296
A15: TQS0104 | B15: Transformers outage rate - fault | C15: % | D15: 0.1337209302
A16: TQS0105 | B16: Number of Transformer fault outages | C16: number | D16: 23
A17: TQS0106 | B17: Number of defined Transformers | C17: number | D17: 172
A18: TQS0107 | B18: Reactive plant outage rate - fault | C18: % | D18: 0.2573529412
A19: TQS0108 | B19: Number of Reactive plant fault outages | C19: number | D19: 35
A20: TQS0109 | B20: Number of defined Reactive plant | C20: number | D20: 136
A21: TQS0110 | B21: Lines outage rate – forced outage | C21: % | D21: 0.1385135135
A22: TQS0111 | B22: Number of Lines forced outages | C22: number | D22: 41
A23: TQS0112 | B23: Transformer outage rate – forced outage | C23: % | D23: 0.1453488372
A24: TQS0113 | B24: Number of Transformers forced outages | C24: number | D24: 25
A25: TQS0114 | B25: Reactive plant outage rate – forced outage | C25: % | D25: 0.2132352941
A26: TQS0115 | B26: Number of Reactive plant forced outages | C26: number | D26: 29
B27: Service Parameter 2 – Loss of supply event frequency – number in ranges specified
A28: TQS0116 | B28: Number of events greater than 0.05 system minutes per annum (X) | C28: number
A29: TQS0117 | B29: Number of events greater than 0.1 system minutes per annum (X) | C29: number | D29: 0
A30: TQS0118 | B30: Number of events greater than 0.2 system minutes per annum (X) | C30: number
A31: TQS0119 | B31: Number of events greater than 0.25 system minutes per annum (X) | C31: number
A32: TQS0120 | B32: Number of events greater than 0.30 system minutes per annum (X) | C32: number
A33: TQS0121 | B33: Number of events greater than 0.5 system minutes per annum (X) | C33: number
A34: TQS0122 | B34: Number of events greater than 0.75 system minutes per annum (X) | C34: number
A35: TQS0123 | B35: Number of events greater than 1.0 system minutes per annum (X) | C35: number
A36: TQS0124 | B36: Number of events greater than 0.05 system minutes per annum (Y) | C36: number
A37: TQS0125 | B37: Number of events greater than 0.1 system minutes per annum (Y) | C37: number
A38: TQS0126 | B38: Number of events greater than 0.2 system minutes per annum (Y) | C38: number
A39: TQS0127 | B39: Number of events greater than 0.25 system minutes per annum (Y) | C39: number
A40: TQS0128 | B40: Number of events greater than 0.30 system minutes per annum (Y) | C40: number
A41: TQS0129 | B41: Number of events greater than 0.5 system minutes per annum (Y) | C41: number
A42: TQS0130 | B42: Number of events greater than 0.75 system minutes per annum (Y) | C42: number | D42: 0
A43: TQS0131 | B43: Number of events greater than 1.0 system minutes per annum (Y) | C43: number
B44: Service Parameter 3 – Average outage duration
A45: TQS0118 | B45: Average outage duration | C45: minutes | D45: 30.06
B46: Service Parameter 4 – Proper operation of equipment – number of failure events
A47: TQS0119 | B47: Failure of protection system | C47: number | D47: 20
A48: TQS0120 | B48: Material failure of Supervisory Control and Data Acquisition (SCADA) system | C48: number | D48: 2
A49: TQS0121 | B49: Incorrect operational isolation of primary or secondary equipment | C49: number | D49: 4
B52: 3.6.2 - MARKET IMPACT COMPONENT
D53: VOLUME
D54: =CONCATENATE("Calendar Year ",(LEFT(dms_RYE,2)&RIGHT(dms_RYE,2)-1)) -> Calendar Year 2016
A55: TQS02 | B55: Market Impact Parameter | C55: Number of dispatch intervals | D55: 42
B57: 3.6.3 - SYSTEM LOSSES
D58: (per cent)
D59: =CONCATENATE("Calendar Year ",(LEFT(dms_RYE,2)&RIGHT(dms_RYE,2)-1)) -> Calendar Year 2016
A60: TQS03 | B60: System losses | C60: % | D60: 0.02514929538

Sheet 3.7 Operating environment
B1: REGULATORY REPORTING STATEMENT
B2: =INDEX(dms_TradingNameFull_List,MATCH(dms_TradingName,dms_TradingName_List)) -> Queensland Electricity Transmission Corporation Limited trading as Powerlink Queensland
B3: =CONCATENATE("Benchmarking RIN response ",CRY) -> Benchmarking RIN response 2016-17
B4: 3.7 OPERATING ENVIRONMENT FACTORS
A7: TEF01 | B7: 3.7.1 - TERRAIN FACTORS
D8: (0's)
C9: Unit | D9: =CRY -> 2016-17
A10: TEF0101 | B10: Total number of vegetation maintenance spans | C10: Number of spans | D10: 7875
A11: TEF0102 | B11: Average vegetation maintenance span cycle | C11: Years | D11: 2.664
A12: TEF0103 | B12: Average number of trees per vegetation maintenance span | C12: Trees | D12: 424
A13: TEF0104 | B13: Average number of defects per vegetation maintenance span | C13: Defects | D13: 0.0559
A14: TEF0105 | B14: Tropical proportion | C14: Number of spans | D14: 5728
A15: TEF0106 | B15: Standard vehicle access | C15: km | D15: 7929
A16: TEF0107 | B16: Altitude | C16: km | D16: 239.5
A17: TEF0108 | B17: Bushfire risk | C17: Number of spans | D17: 879
A20: TEF02 | B20: 3.7.2 - NETWORK CHARACTERISTICS
D21: (0's)
D22: =CRY -> 2016-17
A23: TEF0201 | B23: Route line length | C23: km | D23: 9631
A24: TEF0202 | B24: Variability of dispatch | C24: % | D24: 0.057
A25: TEF0203 | B25: Concentrated load distance | C25: km | D25: 565.4
A26: TEF0204 | B26: Total number of spans | C26: number | D26: 23728

Sheet NSP Amendments
B1: =CONCATENATE(dms_TradingName," data amendments") -> Powerlink data amendments
B2: Amended Table | C2: Comments
